{"text_format":"1","workbook":"xlsx","n_sheets":4,"sheets":["Scores","Classement dates","Classement saison","Synthèse"],"not_rendered":{"charts":0,"images":0,"macros":0,"external_links":0,"defined_names":1,"comments":0,"pivot_tables":4},"unopened":[],"bounds":{"document_bytes":16777216,"sheet_cells":100000,"rows_first":2000,"rows_last":500,"rows_between":2000,"halvings":0,"cell_chars":16384,"cell_head_chars":4096},"cells_cut":0,"cells_raw":0,"read":"whole","date_system":"1900"}

{"sheet":"Scores","index":0,"n_rows":146,"n_cols":9,"rows_kept":146,"cut":false,"hidden":false,"merged":[[134,0,139,0],[140,0,145,0],[104,0,109,0],[110,0,115,0],[116,0,121,0],[122,0,127,0],[128,0,133,0],[74,0,79,0],[80,0,85,0],[86,0,91,0],[92,0,97,0],[98,0,103,0],[2,0,7,0],[8,0,13,0],[50,0,55,0],[56,0,61,0],[62,0,67,0],[68,0,73,0],[14,0,19,0],[20,0,25,0],[26,0,31,0],[32,0,37,0],[38,0,43,0],[44,0,49,0]]}
[]
["Eq.","Date","Nom","Sexe","Partie 1","Partie 2","Partie 3","Meilleur simple","Total Triple"]
["Equipe 1","2019-08-21","Marie Blais","F",12,13,14,{"$f":"MAX(E3:G3)","v":14},{"$f":"SUM(E3:G3)","v":39}]
[null,"2019-08-21","Donald Lauzon","H",null,null,null,{"$f":"MAX(E4:G4)","v":0},{"$f":"SUM(E4:G4)","v":0}]
[null,"2019-08-21","Robert Plouffe","H",14,15,null,{"$f":"MAX(E5:G5)","v":15},{"$f":"SUM(E5:G5)","v":29}]
[null,"2019-08-21","Normand Jerôme","H",null,null,null,{"$f":"MAX(E6:G6)","v":0},{"$f":"SUM(E6:G6)","v":0}]
[null,"2019-08-21","Gilles Forget","H",27,null,null,{"$f":"MAX(E7:G7)","v":27},{"$f":"SUM(E7:G7)","v":27}]
[null,"2019-08-21","Robert Viau","H",null,null,null,{"$f":"MAX(E8:G8)","v":0},{"$f":"SUM(E8:G8)","v":0}]
["Equipe 2","2019-08-21","Micheline Lapointe","F",null,null,null,{"$f":"MAX(E9:G9)","v":0},{"$f":"SUM(E9:G9)","v":0}]
[null,"2019-08-21","Johanne Choquette","F",null,null,null,{"$f":"MAX(E10:G10)","v":0},{"$f":"SUM(E10:G10)","v":0}]
[null,"2019-08-21","Ovide Lafrance","H",null,null,null,{"$f":"MAX(E11:G11)","v":0},{"$f":"SUM(E11:G11)","v":0}]
[null,"2019-08-21","Richard Lemay","H",null,null,null,{"$f":"MAX(E12:G12)","v":0},{"$f":"SUM(E12:G12)","v":0}]
[null,"2019-08-21","Monique Cyr Boucher","F",null,null,null,{"$f":"MAX(E13:G13)","v":0},{"$f":"SUM(E13:G13)","v":0}]
[null,"2019-08-21","Robert Deslauriers","H",null,null,null,{"$f":"MAX(E14:G14)","v":0},{"$f":"SUM(E14:G14)","v":0}]
["Equipe 3","2019-08-21","Carole Lafrance","F",null,null,null,{"$f":"MAX(E15:G15)","v":0},{"$f":"SUM(E15:G15)","v":0}]
[null,"2019-08-21","Simone Thibeault","F",null,null,null,{"$f":"MAX(E16:G16)","v":0},{"$f":"SUM(E16:G16)","v":0}]
[null,"2019-08-21","Alain Miron","H",null,null,null,{"$f":"MAX(E17:G17)","v":0},{"$f":"SUM(E17:G17)","v":0}]
[null,"2019-08-21","Louis-Georges Dumais","H",null,null,null,{"$f":"MAX(E18:G18)","v":0},{"$f":"SUM(E18:G18)","v":0}]
[null,"2019-08-21","André Desalliers                                                                                      ","H",null,null,null,{"$f":"MAX(E19:G19)","v":0},{"$f":"SUM(E19:G19)","v":0}]
[null,"2019-08-21","Yvon Paquin","H",null,null,null,{"$f":"MAX(E20:G20)","v":0},{"$f":"SUM(E20:G20)","v":0}]
["Equipe 4","2019-08-21","Louise Gamelin","F",null,null,null,{"$f":"MAX(E21:G21)","v":0},{"$f":"SUM(E21:G21)","v":0}]
[null,"2019-08-21","Michelle Frappier","F",null,null,null,{"$f":"MAX(E22:G22)","v":0},{"$f":"SUM(E22:G22)","v":0}]
[null,"2019-08-21","Carmelle Dubé","F",null,null,null,{"$f":"MAX(E23:G23)","v":0},{"$f":"SUM(E23:G23)","v":0}]
[null,"2019-08-21","Yves Montreuil","H",null,null,null,{"$f":"MAX(E24:G24)","v":0},{"$f":"SUM(E24:G24)","v":0}]
[null,"2019-08-21","Georgette Rocheleau","F",null,null,null,{"$f":"MAX(E25:G25)","v":0},{"$f":"SUM(E25:G25)","v":0}]
[null,"2019-08-21","Raymond Descoteaux                                              ","H",null,null,null,{"$f":"MAX(E26:G26)","v":0},{"$f":"SUM(E26:G26)","v":0}]
["Equipe 5","2019-08-21","Lucie Charron","F",null,null,null,{"$f":"MAX(E27:G27)","v":0},{"$f":"SUM(E27:G27)","v":0}]
[null,"2019-08-21","Claudette Marquis","F",null,null,null,{"$f":"MAX(E28:G28)","v":0},{"$f":"SUM(E28:G28)","v":0}]
[null,"2019-08-21","Ginette Duguas","F",null,null,null,{"$f":"MAX(E29:G29)","v":0},{"$f":"SUM(E29:G29)","v":0}]
[null,"2019-08-21","Maryse Bilodeau","F",null,null,null,{"$f":"MAX(E30:G30)","v":0},{"$f":"SUM(E30:G30)","v":0}]
[null,"2019-08-21","Ginette Belec                                       ","F",null,null,null,{"$f":"MAX(E31:G31)","v":0},{"$f":"SUM(E31:G31)","v":0}]
[null,"2019-08-21","Jean-Claude Ouimet","H",null,null,null,{"$f":"MAX(E32:G32)","v":0},{"$f":"SUM(E32:G32)","v":0}]
["Equipe 6","2019-08-21","Madeleine Dumais","F",null,null,null,{"$f":"MAX(E33:G33)","v":0},{"$f":"SUM(E33:G33)","v":0}]
[null,"2019-08-21","Shirley Arcand","F",null,null,null,{"$f":"MAX(E34:G34)","v":0},{"$f":"SUM(E34:G34)","v":0}]
[null,"2019-08-21","Yvette St-Pierre","F",null,null,null,{"$f":"MAX(E35:G35)","v":0},{"$f":"SUM(E35:G35)","v":0}]
[null,"2019-08-21","Claude Lapointe","H",null,null,null,{"$f":"MAX(E36:G36)","v":0},{"$f":"SUM(E36:G36)","v":0}]
[null,"2019-08-21","Guy White","H",null,null,null,{"$f":"MAX(E37:G37)","v":0},{"$f":"SUM(E37:G37)","v":0}]
[null,"2019-08-21","Thérèse Robert                     ","F",null,null,null,{"$f":"MAX(E38:G38)","v":0},{"$f":"SUM(E38:G38)","v":0}]
["Equipe 7","2019-08-21","Johanne Laporte","F",null,null,null,{"$f":"MAX(E39:G39)","v":0},{"$f":"SUM(E39:G39)","v":0}]
[null,"2019-08-21","Diane Major","F",null,null,null,{"$f":"MAX(E40:G40)","v":0},{"$f":"SUM(E40:G40)","v":0}]
[null,"2019-08-21","Monique Lauzon","F",null,null,null,{"$f":"MAX(E41:G41)","v":0},{"$f":"SUM(E41:G41)","v":0}]
[null,"2019-08-21","Nicole Lauzon","F",null,null,null,{"$f":"MAX(E42:G42)","v":0},{"$f":"SUM(E42:G42)","v":0}]
[null,"2019-08-21","Michel Fontaine","H",null,null,null,{"$f":"MAX(E43:G43)","v":0},{"$f":"SUM(E43:G43)","v":0}]
[null,"2019-08-21","Charles Rouleau","H",null,null,null,{"$f":"MAX(E44:G44)","v":0},{"$f":"SUM(E44:G44)","v":0}]
["Equipe 8","2019-08-21","Diane Toupin","F",null,null,null,{"$f":"MAX(E45:G45)","v":0},{"$f":"SUM(E45:G45)","v":0}]
[null,"2019-08-21","Ginette Breault","F",null,null,null,{"$f":"MAX(E46:G46)","v":0},{"$f":"SUM(E46:G46)","v":0}]
[null,"2019-08-21","Mariette Bouchard","F",null,null,null,{"$f":"MAX(E47:G47)","v":0},{"$f":"SUM(E47:G47)","v":0}]
[null,"2019-08-21","Claude Boucher (S)","H",null,null,null,{"$f":"MAX(E48:G48)","v":0},{"$f":"SUM(E48:G48)","v":0}]
[null,"2019-08-21","André Malo","H",null,null,null,{"$f":"MAX(E49:G49)","v":0},{"$f":"SUM(E49:G49)","v":0}]
[null,"2019-08-21","Yvon Sévigny","H",null,null,null,{"$f":"MAX(E50:G50)","v":0},{"$f":"SUM(E50:G50)","v":0}]
["Equipe 9","2019-08-21","Denise Croteau","F",null,null,null,{"$f":"MAX(E51:G51)","v":0},{"$f":"SUM(E51:G51)","v":0}]
[null,"2019-08-21","Liliane Ouimet","F",null,null,null,{"$f":"MAX(E52:G52)","v":0},{"$f":"SUM(E52:G52)","v":0}]
[null,"2019-08-21","Serge Pleau","H",null,null,null,{"$f":"MAX(E53:G53)","v":0},{"$f":"SUM(E53:G53)","v":0}]
[null,"2019-08-21","Monique Boucher","F",null,null,null,{"$f":"MAX(E54:G54)","v":0},{"$f":"SUM(E54:G54)","v":0}]
[null,"2019-08-21","Richard Choquette","H",null,null,null,{"$f":"MAX(E55:G55)","v":0},{"$f":"SUM(E55:G55)","v":0}]
[null,"2019-08-21","Réjean Forget","H",null,null,null,{"$f":"MAX(E56:G56)","v":0},{"$f":"SUM(E56:G56)","v":0}]
["Equipe 10","2019-08-21","Mimi Pearson","F",null,null,null,{"$f":"MAX(E57:G57)","v":0},{"$f":"SUM(E57:G57)","v":0}]
[null,"2019-08-21","Lisette Paquin","F",null,null,null,{"$f":"MAX(E58:G58)","v":0},{"$f":"SUM(E58:G58)","v":0}]
[null,"2019-08-21","Delphis Ouellet","H",null,null,null,{"$f":"MAX(E59:G59)","v":0},{"$f":"SUM(E59:G59)","v":0}]
[null,"2019-08-21","Gilles Dusseault","H",null,null,null,{"$f":"MAX(E60:G60)","v":0},{"$f":"SUM(E60:G60)","v":0}]
[null,"2019-08-21","Claude Boucher","H",null,null,null,{"$f":"MAX(E61:G61)","v":0},{"$f":"SUM(E61:G61)","v":0}]
[null,"2019-08-21","Gilles Briand","H",null,null,null,{"$f":"MAX(E62:G62)","v":0},{"$f":"SUM(E62:G62)","v":0}]
["Equipe 11","2019-08-21","Agathe Gauthier","F",null,null,null,{"$f":"MAX(E63:G63)","v":0},{"$f":"SUM(E63:G63)","v":0}]
[null,"2019-08-21","Nicole Deslauriers","F",null,null,null,{"$f":"MAX(E64:G64)","v":0},{"$f":"SUM(E64:G64)","v":0}]
[null,"2019-08-21","Réjeanne O'Sullivan","F",null,null,null,{"$f":"MAX(E65:G65)","v":0},{"$f":"SUM(E65:G65)","v":0}]
[null,"2019-08-21","André Giroux","H",null,null,null,{"$f":"MAX(E66:G66)","v":0},{"$f":"SUM(E66:G66)","v":0}]
[null,"2019-08-21","Geatan Martin","H",null,null,null,{"$f":"MAX(E67:G67)","v":0},{"$f":"SUM(E67:G67)","v":0}]
[null,"2019-08-21","Bernard Chouinard","H",null,null,null,{"$f":"MAX(E68:G68)","v":0},{"$f":"SUM(E68:G68)","v":0}]
["Equipe 12","2019-08-21","Francine Pleau","F",null,null,null,{"$f":"MAX(E69:G69)","v":0},{"$f":"SUM(E69:G69)","v":0}]
[null,"2019-08-21","Jean-Claude Gélinas","F",null,null,null,{"$f":"MAX(E70:G70)","v":0},{"$f":"SUM(E70:G70)","v":0}]
[null,"2019-08-21","Francine Desjardins","F",null,null,null,{"$f":"MAX(E71:G71)","v":0},{"$f":"SUM(E71:G71)","v":0}]
[null,"2019-08-21","Francine Legeault","H",null,null,null,{"$f":"MAX(E72:G72)","v":0},{"$f":"SUM(E72:G72)","v":0}]
[null,"2019-08-21","Gerald Pearson","H",null,null,null,{"$f":"MAX(E73:G73)","v":0},{"$f":"SUM(E73:G73)","v":0}]
[null,"2019-08-21","Gilles Binette","H",null,null,null,{"$f":"MAX(E74:G74)","v":0},{"$f":"SUM(E74:G74)","v":0}]
["Equipe 1",{"$f":"B3+7","v":"2019-08-28"},"Marie Blais","F",125,118,169,{"$f":"MAX(E75:G75)","v":169},{"$f":"SUM(E75:G75)","v":412}]
[null,{"$f":"B4+7","v":"2019-08-28"},"Donald Lauzon","H",null,null,null,{"$f":"MAX(E76:G76)","v":0},{"$f":"SUM(E76:G76)","v":0}]
[null,"2019-08-28","Robert Plouffe","H",null,null,null,{"$f":"MAX(E77:G77)","v":0},{"$f":"SUM(E77:G77)","v":0}]
[null,"2019-08-28","Normand Jerôme","H",null,null,null,{"$f":"MAX(E78:G78)","v":0},{"$f":"SUM(E78:G78)","v":0}]
[null,"2019-08-28","Gilles Forget","H",null,null,null,{"$f":"MAX(E79:G79)","v":0},{"$f":"SUM(E79:G79)","v":0}]
[null,"2019-08-28","Robert Viau","H",null,null,null,{"$f":"MAX(E80:G80)","v":0},{"$f":"SUM(E80:G80)","v":0}]
["Equipe 2","2019-08-28","Micheline Lapointe","F",null,null,null,{"$f":"MAX(E81:G81)","v":0},{"$f":"SUM(E81:G81)","v":0}]
[null,"2019-08-28","Johanne Choquette","F",null,null,null,{"$f":"MAX(E82:G82)","v":0},{"$f":"SUM(E82:G82)","v":0}]
[null,"2019-08-28","Ovide Lafrance","H",null,null,null,{"$f":"MAX(E83:G83)","v":0},{"$f":"SUM(E83:G83)","v":0}]
[null,"2019-08-28","Richard Lemay","H",null,null,null,{"$f":"MAX(E84:G84)","v":0},{"$f":"SUM(E84:G84)","v":0}]
[null,"2019-08-28","Monique Cyr Boucher","F",null,null,null,{"$f":"MAX(E85:G85)","v":0},{"$f":"SUM(E85:G85)","v":0}]
[null,"2019-08-28","Robert Deslauriers","H",null,null,null,{"$f":"MAX(E86:G86)","v":0},{"$f":"SUM(E86:G86)","v":0}]
["Equipe 3","2019-08-28","Carole Lafrance","F",null,null,null,{"$f":"MAX(E87:G87)","v":0},{"$f":"SUM(E87:G87)","v":0}]
[null,"2019-08-28","Simone Thibeault","F",null,null,null,{"$f":"MAX(E88:G88)","v":0},{"$f":"SUM(E88:G88)","v":0}]
[null,"2019-08-28","Alain Miron","H",null,null,null,{"$f":"MAX(E89:G89)","v":0},{"$f":"SUM(E89:G89)","v":0}]
[null,"2019-08-28","Louis-Georges Dumais","H",null,null,null,{"$f":"MAX(E90:G90)","v":0},{"$f":"SUM(E90:G90)","v":0}]
[null,"2019-08-28","André Desalliers                                                                                      ","H",null,null,null,{"$f":"MAX(E91:G91)","v":0},{"$f":"SUM(E91:G91)","v":0}]
[null,"2019-08-28","Yvon Paquin","H",null,null,null,{"$f":"MAX(E92:G92)","v":0},{"$f":"SUM(E92:G92)","v":0}]
["Equipe 4","2019-08-28","Louise Gamelin","F",null,null,null,{"$f":"MAX(E93:G93)","v":0},{"$f":"SUM(E93:G93)","v":0}]
[null,"2019-08-28","Michelle Frappier","F",null,null,null,{"$f":"MAX(E94:G94)","v":0},{"$f":"SUM(E94:G94)","v":0}]
[null,"2019-08-28","Carmelle Dubé","F",null,null,null,{"$f":"MAX(E95:G95)","v":0},{"$f":"SUM(E95:G95)","v":0}]
[null,"2019-08-28","Yves Montreuil","H",null,null,null,{"$f":"MAX(E96:G96)","v":0},{"$f":"SUM(E96:G96)","v":0}]
[null,"2019-08-28","Georgette Rocheleau","F",null,null,null,{"$f":"MAX(E97:G97)","v":0},{"$f":"SUM(E97:G97)","v":0}]
[null,"2019-08-28","Raymond Descoteaux                                              ","H",null,null,null,{"$f":"MAX(E98:G98)","v":0},{"$f":"SUM(E98:G98)","v":0}]
["Equipe 5","2019-08-28","Lucie Charron","F",null,null,null,{"$f":"MAX(E99:G99)","v":0},{"$f":"SUM(E99:G99)","v":0}]
[null,"2019-08-28","Claudette Marquis","F",null,null,null,{"$f":"MAX(E100:G100)","v":0},{"$f":"SUM(E100:G100)","v":0}]
[null,"2019-08-28","Ginette Duguas","F",null,null,null,{"$f":"MAX(E101:G101)","v":0},{"$f":"SUM(E101:G101)","v":0}]
[null,"2019-08-28","Maryse Bilodeau","F",null,null,null,{"$f":"MAX(E102:G102)","v":0},{"$f":"SUM(E102:G102)","v":0}]
[null,"2019-08-28","Ginette Belec                                       ","F",null,null,null,{"$f":"MAX(E103:G103)","v":0},{"$f":"SUM(E103:G103)","v":0}]
[null,"2019-08-28","Jean-Claude Ouimet","H",null,null,null,{"$f":"MAX(E104:G104)","v":0},{"$f":"SUM(E104:G104)","v":0}]
["Equipe 6","2019-08-28","Madeleine Dumais","F",null,null,null,{"$f":"MAX(E105:G105)","v":0},{"$f":"SUM(E105:G105)","v":0}]
[null,"2019-08-28","Shirley Arcand","F",null,null,null,{"$f":"MAX(E106:G106)","v":0},{"$f":"SUM(E106:G106)","v":0}]
[null,"2019-08-28","Yvette St-Pierre","F",null,null,null,{"$f":"MAX(E107:G107)","v":0},{"$f":"SUM(E107:G107)","v":0}]
[null,"2019-08-28","Claude Lapointe","H",null,null,null,{"$f":"MAX(E108:G108)","v":0},{"$f":"SUM(E108:G108)","v":0}]
[null,"2019-08-28","Guy White","H",null,null,null,{"$f":"MAX(E109:G109)","v":0},{"$f":"SUM(E109:G109)","v":0}]
[null,"2019-08-28","Thérèse Robert                     ","F",null,null,null,{"$f":"MAX(E110:G110)","v":0},{"$f":"SUM(E110:G110)","v":0}]
["Equipe 7","2019-08-28","Johanne Laporte","F",null,null,null,{"$f":"MAX(E111:G111)","v":0},{"$f":"SUM(E111:G111)","v":0}]
[null,"2019-08-28","Diane Major","F",null,null,null,{"$f":"MAX(E112:G112)","v":0},{"$f":"SUM(E112:G112)","v":0}]
[null,"2019-08-28","Monique Lauzon","F",null,null,null,{"$f":"MAX(E113:G113)","v":0},{"$f":"SUM(E113:G113)","v":0}]
[null,"2019-08-28","Nicole Lauzon","F",null,null,null,{"$f":"MAX(E114:G114)","v":0},{"$f":"SUM(E114:G114)","v":0}]
[null,"2019-08-28","Michel Fontaine","H",null,null,null,{"$f":"MAX(E115:G115)","v":0},{"$f":"SUM(E115:G115)","v":0}]
[null,"2019-08-28","Charles Rouleau","H",null,null,null,{"$f":"MAX(E116:G116)","v":0},{"$f":"SUM(E116:G116)","v":0}]
["Equipe 8","2019-08-28","Diane Toupin","F",null,null,null,{"$f":"MAX(E117:G117)","v":0},{"$f":"SUM(E117:G117)","v":0}]
[null,"2019-08-28","Ginette Breault","F",null,null,null,{"$f":"MAX(E118:G118)","v":0},{"$f":"SUM(E118:G118)","v":0}]
[null,"2019-08-28","Mariette Bouchard","F",null,null,null,{"$f":"MAX(E119:G119)","v":0},{"$f":"SUM(E119:G119)","v":0}]
[null,"2019-08-28","Claude Boucher (S)","H",null,null,null,{"$f":"MAX(E120:G120)","v":0},{"$f":"SUM(E120:G120)","v":0}]
[null,"2019-08-28","André Malo","H",null,null,null,{"$f":"MAX(E121:G121)","v":0},{"$f":"SUM(E121:G121)","v":0}]
[null,"2019-08-28","Yvon Sévigny","H",null,null,null,{"$f":"MAX(E122:G122)","v":0},{"$f":"SUM(E122:G122)","v":0}]
["Equipe 9","2019-08-28","Denise Croteau","F",null,null,null,{"$f":"MAX(E123:G123)","v":0},{"$f":"SUM(E123:G123)","v":0}]
[null,"2019-08-28","Liliane Ouimet","F",null,null,null,{"$f":"MAX(E124:G124)","v":0},{"$f":"SUM(E124:G124)","v":0}]
[null,"2019-08-28","Serge Pleau","H",null,null,null,{"$f":"MAX(E125:G125)","v":0},{"$f":"SUM(E125:G125)","v":0}]
[null,"2019-08-28","Monique Boucher","F",null,null,null,{"$f":"MAX(E126:G126)","v":0},{"$f":"SUM(E126:G126)","v":0}]
[null,"2019-08-28","Richard Choquette","H",null,null,null,{"$f":"MAX(E127:G127)","v":0},{"$f":"SUM(E127:G127)","v":0}]
[null,"2019-08-28","Réjean Forget","H",null,null,null,{"$f":"MAX(E128:G128)","v":0},{"$f":"SUM(E128:G128)","v":0}]
["Equipe 10","2019-08-28","Mimi Pearson","F",null,null,null,{"$f":"MAX(E129:G129)","v":0},{"$f":"SUM(E129:G129)","v":0}]
[null,"2019-08-28","Lisette Paquin","F",null,null,null,{"$f":"MAX(E130:G130)","v":0},{"$f":"SUM(E130:G130)","v":0}]
[null,"2019-08-28","Delphis Ouellet","H",null,null,null,{"$f":"MAX(E131:G131)","v":0},{"$f":"SUM(E131:G131)","v":0}]
[null,"2019-08-28","Gilles Dusseault","H",null,null,null,{"$f":"MAX(E132:G132)","v":0},{"$f":"SUM(E132:G132)","v":0}]
[null,"2019-08-28","Claude Boucher","H",null,null,null,{"$f":"MAX(E133:G133)","v":0},{"$f":"SUM(E133:G133)","v":0}]
[null,"2019-08-28","Gilles Briand","H",null,null,null,{"$f":"MAX(E134:G134)","v":0},{"$f":"SUM(E134:G134)","v":0}]
["Equipe 11","2019-08-28","Agathe Gauthier","F",null,null,null,{"$f":"MAX(E135:G135)","v":0},{"$f":"SUM(E135:G135)","v":0}]
[null,"2019-08-28","Nicole Deslauriers","F",null,null,null,{"$f":"MAX(E136:G136)","v":0},{"$f":"SUM(E136:G136)","v":0}]
[null,"2019-08-28","Réjeanne O'Sullivan","F",null,null,null,{"$f":"MAX(E137:G137)","v":0},{"$f":"SUM(E137:G137)","v":0}]
[null,"2019-08-28","André Giroux","H",null,null,null,{"$f":"MAX(E138:G138)","v":0},{"$f":"SUM(E138:G138)","v":0}]
[null,"2019-08-28","Geatan Martin","H",null,null,null,{"$f":"MAX(E139:G139)","v":0},{"$f":"SUM(E139:G139)","v":0}]
[null,{"$f":"B68+7","v":"2019-08-28"},"Bernard Chouinard","H",null,null,null,{"$f":"MAX(E140:G140)","v":0},{"$f":"SUM(E140:G140)","v":0}]
["Equipe 12","2019-08-28","Francine Pleau","F",null,null,null,{"$f":"MAX(E141:G141)","v":0},{"$f":"SUM(E141:G141)","v":0}]
[null,"2019-08-28","Jean-Claude Gélinas","F",null,null,null,{"$f":"MAX(E142:G142)","v":0},{"$f":"SUM(E142:G142)","v":0}]
[null,"2019-08-28","Francine Desjardins","F",null,null,null,{"$f":"MAX(E143:G143)","v":0},{"$f":"SUM(E143:G143)","v":0}]
[null,"2019-08-28","Francine Legeault","H",null,null,null,{"$f":"MAX(E144:G144)","v":0},{"$f":"SUM(E144:G144)","v":0}]
[null,"2019-08-28","Gerald Pearson","H",null,null,null,{"$f":"MAX(E145:G145)","v":0},{"$f":"SUM(E145:G145)","v":0}]
[null,"2019-08-28","Gilles Binette","H",null,null,null,{"$f":"MAX(E146:G146)","v":0},{"$f":"SUM(E146:G146)","v":0}]

{"sheet":"Classement dates","index":1,"n_rows":153,"n_cols":4,"rows_kept":153,"cut":false,"hidden":false,"merged":[]}
[]
[]
[]
["Sexe","Date","Meilleur simple","Nom"]
["F","2019-08-21",14,"Marie Blais"]
[null,null,0,"Agathe Gauthier"]
[null,null,null,"Carmelle Dubé"]
[null,null,null,"Carole Lafrance"]
[null,null,null,"Claudette Marquis"]
[null,null,null,"Denise Croteau"]
[null,null,null,"Diane Major"]
[null,null,null,"Diane Toupin"]
[null,null,null,"Francine Desjardins"]
[null,null,null,"Francine Pleau"]
[null,null,null,"Georgette Rocheleau"]
[null,null,null,"Ginette Belec                                       "]
[null,null,null,"Ginette Breault"]
[null,null,null,"Ginette Duguas"]
[null,null,null,"Jean-Claude Gélinas"]
[null,null,null,"Johanne Choquette"]
[null,null,null,"Johanne Laporte"]
[null,null,null,"Liliane Ouimet"]
[null,null,null,"Lisette Paquin"]
[null,null,null,"Louise Gamelin"]
[null,null,null,"Lucie Charron"]
[null,null,null,"Madeleine Dumais"]
[null,null,null,"Mariette Bouchard"]
[null,null,null,"Maryse Bilodeau"]
[null,null,null,"Micheline Lapointe"]
[null,null,null,"Michelle Frappier"]
[null,null,null,"Mimi Pearson"]
[null,null,null,"Monique Boucher"]
[null,null,null,"Monique Cyr Boucher"]
[null,null,null,"Monique Lauzon"]
[null,null,null,"Nicole Deslauriers"]
[null,null,null,"Nicole Lauzon"]
[null,null,null,"Réjeanne O'Sullivan"]
[null,null,null,"Shirley Arcand"]
[null,null,null,"Simone Thibeault"]
[null,null,null,"Thérèse Robert                     "]
[null,null,null,"Yvette St-Pierre"]
["H","2019-08-21",27,"Gilles Forget"]
[null,null,15,"Robert Plouffe"]
[null,null,0,"Alain Miron"]
[null,null,null,"André Desalliers                                                                                      "]
[null,null,null,"André Giroux"]
[null,null,null,"André Malo"]
[null,null,null,"Bernard Chouinard"]
[null,null,null,"Charles Rouleau"]
[null,null,null,"Claude Boucher"]
[null,null,null,"Claude Boucher (S)"]
[null,null,null,"Claude Lapointe"]
[null,null,null,"Delphis Ouellet"]
[null,null,null,"Donald Lauzon"]
[null,null,null,"Francine Legeault"]
[null,null,null,"Geatan Martin"]
[null,null,null,"Gerald Pearson"]
[null,null,null,"Gilles Binette"]
[null,null,null,"Gilles Briand"]
[null,null,null,"Gilles Dusseault"]
[null,null,null,"Guy White"]
[null,null,null,"Jean-Claude Ouimet"]
[null,null,null,"Louis-Georges Dumais"]
[null,null,null,"Michel Fontaine"]
[null,null,null,"Normand Jerôme"]
[null,null,null,"Ovide Lafrance"]
[null,null,null,"Raymond Descoteaux                                              "]
[null,null,null,"Réjean Forget"]
[null,null,null,"Richard Choquette"]
[null,null,null,"Richard Lemay"]
[null,null,null,"Robert Deslauriers"]
[null,null,null,"Robert Viau"]
[null,null,null,"Serge Pleau"]
[null,null,null,"Yves Montreuil"]
[null,null,null,"Yvon Paquin"]
[null,null,null,"Yvon Sévigny"]
["Total général"]
[]
[]
["Sexe","Date","Total Triple","Nom"]
["F","2019-08-21",39,"Marie Blais"]
[null,null,0,"Agathe Gauthier"]
[null,null,null,"Carmelle Dubé"]
[null,null,null,"Carole Lafrance"]
[null,null,null,"Claudette Marquis"]
[null,null,null,"Denise Croteau"]
[null,null,null,"Diane Major"]
[null,null,null,"Diane Toupin"]
[null,null,null,"Francine Desjardins"]
[null,null,null,"Francine Pleau"]
[null,null,null,"Georgette Rocheleau"]
[null,null,null,"Ginette Belec                                       "]
[null,null,null,"Ginette Breault"]
[null,null,null,"Ginette Duguas"]
[null,null,null,"Jean-Claude Gélinas"]
[null,null,null,"Johanne Choquette"]
[null,null,null,"Johanne Laporte"]
[null,null,null,"Liliane Ouimet"]
[null,null,null,"Lisette Paquin"]
[null,null,null,"Louise Gamelin"]
[null,null,null,"Lucie Charron"]
[null,null,null,"Madeleine Dumais"]
[null,null,null,"Mariette Bouchard"]
[null,null,null,"Maryse Bilodeau"]
[null,null,null,"Micheline Lapointe"]
[null,null,null,"Michelle Frappier"]
[null,null,null,"Mimi Pearson"]
[null,null,null,"Monique Boucher"]
[null,null,null,"Monique Cyr Boucher"]
[null,null,null,"Monique Lauzon"]
[null,null,null,"Nicole Deslauriers"]
[null,null,null,"Nicole Lauzon"]
[null,null,null,"Réjeanne O'Sullivan"]
[null,null,null,"Shirley Arcand"]
[null,null,null,"Simone Thibeault"]
[null,null,null,"Thérèse Robert                     "]
[null,null,null,"Yvette St-Pierre"]
["H","2019-08-21",29,"Robert Plouffe"]
[null,null,27,"Gilles Forget"]
[null,null,0,"Alain Miron"]
[null,null,null,"André Desalliers                                                                                      "]
[null,null,null,"André Giroux"]
[null,null,null,"André Malo"]
[null,null,null,"Bernard Chouinard"]
[null,null,null,"Charles Rouleau"]
[null,null,null,"Claude Boucher"]
[null,null,null,"Claude Boucher (S)"]
[null,null,null,"Claude Lapointe"]
[null,null,null,"Delphis Ouellet"]
[null,null,null,"Donald Lauzon"]
[null,null,null,"Francine Legeault"]
[null,null,null,"Geatan Martin"]
[null,null,null,"Gerald Pearson"]
[null,null,null,"Gilles Binette"]
[null,null,null,"Gilles Briand"]
[null,null,null,"Gilles Dusseault"]
[null,null,null,"Guy White"]
[null,null,null,"Jean-Claude Ouimet"]
[null,null,null,"Louis-Georges Dumais"]
[null,null,null,"Michel Fontaine"]
[null,null,null,"Normand Jerôme"]
[null,null,null,"Ovide Lafrance"]
[null,null,null,"Raymond Descoteaux                                              "]
[null,null,null,"Réjean Forget"]
[null,null,null,"Richard Choquette"]
[null,null,null,"Richard Lemay"]
[null,null,null,"Robert Deslauriers"]
[null,null,null,"Robert Viau"]
[null,null,null,"Serge Pleau"]
[null,null,null,"Yves Montreuil"]
[null,null,null,"Yvon Paquin"]
[null,null,null,"Yvon Sévigny"]
["Total général"]

{"sheet":"Classement saison","index":2,"n_rows":153,"n_cols":3,"rows_kept":153,"cut":false,"hidden":false,"merged":[]}
[]
[]
[]
["Sexe","Simple","Nom"]
["F",169,"Marie Blais"]
[null,0,"Agathe Gauthier"]
[null,null,"Carmelle Dubé"]
[null,null,"Carole Lafrance"]
[null,null,"Claudette Marquis"]
[null,null,"Denise Croteau"]
[null,null,"Diane Major"]
[null,null,"Diane Toupin"]
[null,null,"Francine Desjardins"]
[null,null,"Francine Pleau"]
[null,null,"Georgette Rocheleau"]
[null,null,"Ginette Belec                                       "]
[null,null,"Ginette Breault"]
[null,null,"Ginette Duguas"]
[null,null,"Jean-Claude Gélinas"]
[null,null,"Johanne Choquette"]
[null,null,"Johanne Laporte"]
[null,null,"Liliane Ouimet"]
[null,null,"Lisette Paquin"]
[null,null,"Louise Gamelin"]
[null,null,"Lucie Charron"]
[null,null,"Madeleine Dumais"]
[null,null,"Mariette Bouchard"]
[null,null,"Maryse Bilodeau"]
[null,null,"Micheline Lapointe"]
[null,null,"Michelle Frappier"]
[null,null,"Mimi Pearson"]
[null,null,"Monique Boucher"]
[null,null,"Monique Cyr Boucher"]
[null,null,"Monique Lauzon"]
[null,null,"Nicole Deslauriers"]
[null,null,"Nicole Lauzon"]
[null,null,"Réjeanne O'Sullivan"]
[null,null,"Shirley Arcand"]
[null,null,"Simone Thibeault"]
[null,null,"Thérèse Robert                     "]
[null,null,"Yvette St-Pierre"]
["H",27,"Gilles Forget"]
[null,15,"Robert Plouffe"]
[null,0,"Alain Miron"]
[null,null,"André Desalliers                                                                                      "]
[null,null,"André Giroux"]
[null,null,"André Malo"]
[null,null,"Bernard Chouinard"]
[null,null,"Charles Rouleau"]
[null,null,"Claude Boucher"]
[null,null,"Claude Boucher (S)"]
[null,null,"Claude Lapointe"]
[null,null,"Delphis Ouellet"]
[null,null,"Donald Lauzon"]
[null,null,"Francine Legeault"]
[null,null,"Geatan Martin"]
[null,null,"Gerald Pearson"]
[null,null,"Gilles Binette"]
[null,null,"Gilles Briand"]
[null,null,"Gilles Dusseault"]
[null,null,"Guy White"]
[null,null,"Jean-Claude Ouimet"]
[null,null,"Louis-Georges Dumais"]
[null,null,"Michel Fontaine"]
[null,null,"Normand Jerôme"]
[null,null,"Ovide Lafrance"]
[null,null,"Raymond Descoteaux                                              "]
[null,null,"Réjean Forget"]
[null,null,"Richard Choquette"]
[null,null,"Richard Lemay"]
[null,null,"Robert Deslauriers"]
[null,null,"Robert Viau"]
[null,null,"Serge Pleau"]
[null,null,"Yves Montreuil"]
[null,null,"Yvon Paquin"]
[null,null,"Yvon Sévigny"]
["Total général"]
[]
[]
["Sexe","Triple","Nom"]
["F",412,"Marie Blais"]
[null,0,"Agathe Gauthier"]
[null,null,"Carmelle Dubé"]
[null,null,"Carole Lafrance"]
[null,null,"Claudette Marquis"]
[null,null,"Denise Croteau"]
[null,null,"Diane Major"]
[null,null,"Diane Toupin"]
[null,null,"Francine Desjardins"]
[null,null,"Francine Pleau"]
[null,null,"Georgette Rocheleau"]
[null,null,"Ginette Belec                                       "]
[null,null,"Ginette Breault"]
[null,null,"Ginette Duguas"]
[null,null,"Jean-Claude Gélinas"]
[null,null,"Johanne Choquette"]
[null,null,"Johanne Laporte"]
[null,null,"Liliane Ouimet"]
[null,null,"Lisette Paquin"]
[null,null,"Louise Gamelin"]
[null,null,"Lucie Charron"]
[null,null,"Madeleine Dumais"]
[null,null,"Mariette Bouchard"]
[null,null,"Maryse Bilodeau"]
[null,null,"Micheline Lapointe"]
[null,null,"Michelle Frappier"]
[null,null,"Mimi Pearson"]
[null,null,"Monique Boucher"]
[null,null,"Monique Cyr Boucher"]
[null,null,"Monique Lauzon"]
[null,null,"Nicole Deslauriers"]
[null,null,"Nicole Lauzon"]
[null,null,"Réjeanne O'Sullivan"]
[null,null,"Shirley Arcand"]
[null,null,"Simone Thibeault"]
[null,null,"Thérèse Robert                     "]
[null,null,"Yvette St-Pierre"]
["H",29,"Robert Plouffe"]
[null,27,"Gilles Forget"]
[null,0,"Alain Miron"]
[null,null,"André Desalliers                                                                                      "]
[null,null,"André Giroux"]
[null,null,"André Malo"]
[null,null,"Bernard Chouinard"]
[null,null,"Charles Rouleau"]
[null,null,"Claude Boucher"]
[null,null,"Claude Boucher (S)"]
[null,null,"Claude Lapointe"]
[null,null,"Delphis Ouellet"]
[null,null,"Donald Lauzon"]
[null,null,"Francine Legeault"]
[null,null,"Geatan Martin"]
[null,null,"Gerald Pearson"]
[null,null,"Gilles Binette"]
[null,null,"Gilles Briand"]
[null,null,"Gilles Dusseault"]
[null,null,"Guy White"]
[null,null,"Jean-Claude Ouimet"]
[null,null,"Louis-Georges Dumais"]
[null,null,"Michel Fontaine"]
[null,null,"Normand Jerôme"]
[null,null,"Ovide Lafrance"]
[null,null,"Raymond Descoteaux                                              "]
[null,null,"Réjean Forget"]
[null,null,"Richard Choquette"]
[null,null,"Richard Lemay"]
[null,null,"Robert Deslauriers"]
[null,null,"Robert Viau"]
[null,null,"Serge Pleau"]
[null,null,"Yves Montreuil"]
[null,null,"Yvon Paquin"]
[null,null,"Yvon Sévigny"]
["Total général"]

{"sheet":"Synthèse","index":3,"n_rows":75,"n_cols":17,"rows_kept":75,"cut":false,"hidden":false,"merged":[]}
[]
[null,null,null,"Record saison","Record saison","2019-08-21","2019-08-21",{"$f":"F2+7","v":"2019-08-28"},{"$f":"G2+7","v":"2019-08-28"},{"$f":"H2+7","v":"2019-09-04"},"2019-09-04","2019-09-11","2019-09-11","2019-09-18","2019-09-18","2019-09-25"]
[null,"Nom","Sexe","Simple","Triple","Simple","Triple","Simple","Triple","Simple","Triple","Simple","Triple","Simple","Triple","Simple","Simple"]
[null,"Marie Blais","F",{"$f":"MAX(F4,H4,J4,L4,N4,P4)","v":169},{"$f":"MAX(G4,I4,K4,M4,O4,Q4)","v":412},{"$f":"SUMIFS(Scores!$H:$H,Scores!$B:$B,Synthèse!F$2,Scores!$C:$C,Synthèse!$B4)","v":14},{"$f":"SUMIFS(Scores!$I:$I,Scores!$B:$B,Synthèse!G$2,Scores!$C:$C,Synthèse!$B4)","v":39},{"$f":"SUMIFS(Scores!$H:$H,Scores!$B:$B,Synthèse!H$2,Scores!$C:$C,Synthèse!$B4)","v":169},{"$f":"SUMIFS(Scores!$I:$I,Scores!$B:$B,Synthèse!I$2,Scores!$C:$C,Synthèse!$B4)","v":412},{"$f":"SUMIFS(Scores!$H:$H,Scores!$B:$B,Synthèse!J$2,Scores!$C:$C,Synthèse!$B4)","v":0},{"$f":"SUMIFS(Scores!$I:$I,Scores!$B:$B,Synthèse!K$2,Scores!$C:$C,Synthèse!$B4)","v":0},{"$f":"SUMIFS(Scores!$H:$H,Scores!$B:$B,Synthèse!L$2,Scores!$C:$C,Synthèse!$B4)","v":0},{"$f":"SUMIFS(Scores!$I:$I,Scores!$B:$B,Synthèse!M$2,Scores!$C:$C,Synthèse!$B4)","v":0},{"$f":"SUMIFS(Scores!$H:$H,Scores!$B:$B,Synthèse!N$2,Scores!$C:$C,Synthèse!$B4)","v":0},{"$f":"SUMIFS(Scores!$I:$I,Scores!$B:$B,Synthèse!O$2,Scores!$C:$C,Synthèse!$B4)","v":0},{"$f":"SUMIFS(Scores!$H:$H,Scores!$B:$B,Synthèse!P$2,Scores!$C:$C,Synthèse!$B4)","v":0},{"$f":"SUMIFS(Scores!$I:$I,Scores!$B:$B,Synthèse!Q$2,Scores!$C:$C,Synthèse!$B4)","v":0}]
[null,"Donald Lauzon","H",{"$f":"MAX(F5,H5,J5,L5,N5,P5)","v":0},{"$f":"MAX(G5,I5,K5,M5,O5,Q5)","v":0},{"$f":"SUMIFS(Scores!$H:$H,Scores!$B:$B,Synthèse!F$2,Scores!$C:$C,Synthèse!$B5)","v":0},{"$f":"SUMIFS(Scores!$I:$I,Scores!$B:$B,Synthèse!G$2,Scores!$C:$C,Synthèse!$B5)","v":0},{"$f":"SUMIFS(Scores!$H:$H,Scores!$B:$B,Synthèse!H$2,Scores!$C:$C,Synthèse!$B5)","v":0},{"$f":"SUMIFS(Scores!$I:$I,Scores!$B:$B,Synthèse!I$2,Scores!$C:$C,Synthèse!$B5)","v":0},{"$f":"SUMIFS(Scores!$H:$H,Scores!$B:$B,Synthèse!J$2,Scores!$C:$C,Synthèse!$B5)","v":0},{"$f":"SUMIFS(Scores!$I:$I,Scores!$B:$B,Synthèse!K$2,Scores!$C:$C,Synthèse!$B5)","v":0},{"$f":"SUMIFS(Scores!$H:$H,Scores!$B:$B,Synthèse!L$2,Scores!$C:$C,Synthèse!$B5)","v":0},{"$f":"SUMIFS(Scores!$I:$I,Scores!$B:$B,Synthèse!M$2,Scores!$C:$C,Synthèse!$B5)","v":0},{"$f":"SUMIFS(Scores!$H:$H,Scores!$B:$B,Synthèse!N$2,Scores!$C:$C,Synthèse!$B5)","v":0},{"$f":"SUMIFS(Scores!$I:$I,Scores!$B:$B,Synthèse!O$2,Scores!$C:$C,Synthèse!$B5)","v":0},{"$f":"SUMIFS(Scores!$H:$H,Scores!$B:$B,Synthèse!P$2,Scores!$C:$C,Synthèse!$B5)","v":0},{"$f":"SUMIFS(Scores!$I:$I,Scores!$B:$B,Synthèse!Q$2,Scores!$C:$C,Synthèse!$B5)","v":0}]
[null,"Robert Plouffe","H",15,29,{"$f":"SUMIFS(Scores!$H:$H,Scores!$B:$B,Synthèse!F$2,Scores!$C:$C,Synthèse!$B6)","v":15},{"$f":"SUMIFS(Scores!$I:$I,Scores!$B:$B,Synthèse!G$2,Scores!$C:$C,Synthèse!$B6)","v":29},{"$f":"SUMIFS(Scores!$H:$H,Scores!$B:$B,Synthèse!H$2,Scores!$C:$C,Synthèse!$B6)","v":0},{"$f":"SUMIFS(Scores!$I:$I,Scores!$B:$B,Synthèse!I$2,Scores!$C:$C,Synthèse!$B6)","v":0},{"$f":"SUMIFS(Scores!$H:$H,Scores!$B:$B,Synthèse!J$2,Scores!$C:$C,Synthèse!$B6)","v":0},{"$f":"SUMIFS(Scores!$I:$I,Scores!$B:$B,Synthèse!K$2,Scores!$C:$C,Synthèse!$B6)","v":0},{"$f":"SUMIFS(Scores!$H:$H,Scores!$B:$B,Synthèse!L$2,Scores!$C:$C,Synthèse!$B6)","v":0},{"$f":"SUMIFS(Scores!$I:$I,Scores!$B:$B,Synthèse!M$2,Scores!$C:$C,Synthèse!$B6)","v":0},{"$f":"SUMIFS(Scores!$H:$H,Scores!$B:$B,Synthèse!N$2,Scores!$C:$C,Synthèse!$B6)","v":0},{"$f":"SUMIFS(Scores!$I:$I,Scores!$B:$B,Synthèse!O$2,Scores!$C:$C,Synthèse!$B6)","v":0},{"$f":"SUMIFS(Scores!$H:$H,Scores!$B:$B,Synthèse!P$2,Scores!$C:$C,Synthèse!$B6)","v":0},{"$f":"SUMIFS(Scores!$I:$I,Scores!$B:$B,Synthèse!Q$2,Scores!$C:$C,Synthèse!$B6)","v":0}]
[null,"Normand Jerôme","H",0,0,{"$f":"SUMIFS(Scores!$H:$H,Scores!$B:$B,Synthèse!F$2,Scores!$C:$C,Synthèse!$B7)","v":0},{"$f":"SUMIFS(Scores!$I:$I,Scores!$B:$B,Synthèse!G$2,Scores!$C:$C,Synthèse!$B7)","v":0},{"$f":"SUMIFS(Scores!$H:$H,Scores!$B:$B,Synthèse!H$2,Scores!$C:$C,Synthèse!$B7)","v":0},{"$f":"SUMIFS(Scores!$I:$I,Scores!$B:$B,Synthèse!I$2,Scores!$C:$C,Synthèse!$B7)","v":0},{"$f":"SUMIFS(Scores!$H:$H,Scores!$B:$B,Synthèse!J$2,Scores!$C:$C,Synthèse!$B7)","v":0},{"$f":"SUMIFS(Scores!$I:$I,Scores!$B:$B,Synthèse!K$2,Scores!$C:$C,Synthèse!$B7)","v":0},{"$f":"SUMIFS(Scores!$H:$H,Scores!$B:$B,Synthèse!L$2,Scores!$C:$C,Synthèse!$B7)","v":0},{"$f":"SUMIFS(Scores!$I:$I,Scores!$B:$B,Synthèse!M$2,Scores!$C:$C,Synthèse!$B7)","v":0},{"$f":"SUMIFS(Scores!$H:$H,Scores!$B:$B,Synthèse!N$2,Scores!$C:$C,Synthèse!$B7)","v":0},{"$f":"SUMIFS(Scores!$I:$I,Scores!$B:$B,Synthèse!O$2,Scores!$C:$C,Synthèse!$B7)","v":0},{"$f":"SUMIFS(Scores!$H:$H,Scores!$B:$B,Synthèse!P$2,Scores!$C:$C,Synthèse!$B7)","v":0},{"$f":"SUMIFS(Scores!$I:$I,Scores!$B:$B,Synthèse!Q$2,Scores!$C:$C,Synthèse!$B7)","v":0}]
[null,"Gilles Forget","H",27,27,{"$f":"SUMIFS(Scores!$H:$H,Scores!$B:$B,Synthèse!F$2,Scores!$C:$C,Synthèse!$B8)","v":27},{"$f":"SUMIFS(Scores!$I:$I,Scores!$B:$B,Synthèse!G$2,Scores!$C:$C,Synthèse!$B8)","v":27},{"$f":"SUMIFS(Scores!$H:$H,Scores!$B:$B,Synthèse!H$2,Scores!$C:$C,Synthèse!$B8)","v":0},{"$f":"SUMIFS(Scores!$I:$I,Scores!$B:$B,Synthèse!I$2,Scores!$C:$C,Synthèse!$B8)","v":0},{"$f":"SUMIFS(Scores!$H:$H,Scores!$B:$B,Synthèse!J$2,Scores!$C:$C,Synthèse!$B8)","v":0},{"$f":"SUMIFS(Scores!$I:$I,Scores!$B:$B,Synthèse!K$2,Scores!$C:$C,Synthèse!$B8)","v":0},{"$f":"SUMIFS(Scores!$H:$H,Scores!$B:$B,Synthèse!L$2,Scores!$C:$C,Synthèse!$B8)","v":0},{"$f":"SUMIFS(Scores!$I:$I,Scores!$B:$B,Synthèse!M$2,Scores!$C:$C,Synthèse!$B8)","v":0},{"$f":"SUMIFS(Scores!$H:$H,Scores!$B:$B,Synthèse!N$2,Scores!$C:$C,Synthèse!$B8)","v":0},{"$f":"SUMIFS(Scores!$I:$I,Scores!$B:$B,Synthèse!O$2,Scores!$C:$C,Synthèse!$B8)","v":0},{"$f":"SUMIFS(Scores!$H:$H,Scores!$B:$B,Synthèse!P$2,Scores!$C:$C,Synthèse!$B8)","v":0},{"$f":"SUMIFS(Scores!$I:$I,Scores!$B:$B,Synthèse!Q$2,Scores!$C:$C,Synthèse!$B8)","v":0}]
[null,"Robert Viau","H",0,0,{"$f":"SUMIFS(Scores!$H:$H,Scores!$B:$B,Synthèse!F$2,Scores!$C:$C,Synthèse!$B9)","v":0},{"$f":"SUMIFS(Scores!$I:$I,Scores!$B:$B,Synthèse!G$2,Scores!$C:$C,Synthèse!$B9)","v":0},{"$f":"SUMIFS(Scores!$H:$H,Scores!$B:$B,Synthèse!H$2,Scores!$C:$C,Synthèse!$B9)","v":0},{"$f":"SUMIFS(Scores!$I:$I,Scores!$B:$B,Synthèse!I$2,Scores!$C:$C,Synthèse!$B9)","v":0},{"$f":"SUMIFS(Scores!$H:$H,Scores!$B:$B,Synthèse!J$2,Scores!$C:$C,Synthèse!$B9)","v":0},{"$f":"SUMIFS(Scores!$I:$I,Scores!$B:$B,Synthèse!K$2,Scores!$C:$C,Synthèse!$B9)","v":0},{"$f":"SUMIFS(Scores!$H:$H,Scores!$B:$B,Synthèse!L$2,Scores!$C:$C,Synthèse!$B9)","v":0},{"$f":"SUMIFS(Scores!$I:$I,Scores!$B:$B,Synthèse!M$2,Scores!$C:$C,Synthèse!$B9)","v":0},{"$f":"SUMIFS(Scores!$H:$H,Scores!$B:$B,Synthèse!N$2,Scores!$C:$C,Synthèse!$B9)","v":0},{"$f":"SUMIFS(Scores!$I:$I,Scores!$B:$B,Synthèse!O$2,Scores!$C:$C,Synthèse!$B9)","v":0},{"$f":"SUMIFS(Scores!$H:$H,Scores!$B:$B,Synthèse!P$2,Scores!$C:$C,Synthèse!$B9)","v":0},{"$f":"SUMIFS(Scores!$I:$I,Scores!$B:$B,Synthèse!Q$2,Scores!$C:$C,Synthèse!$B9)","v":0}]
[null,"Micheline Lapointe","F",0,0,{"$f":"SUMIFS(Scores!$H:$H,Scores!$B:$B,Synthèse!F$2,Scores!$C:$C,Synthèse!$B10)","v":0},{"$f":"SUMIFS(Scores!$I:$I,Scores!$B:$B,Synthèse!G$2,Scores!$C:$C,Synthèse!$B10)","v":0},{"$f":"SUMIFS(Scores!$H:$H,Scores!$B:$B,Synthèse!H$2,Scores!$C:$C,Synthèse!$B10)","v":0},{"$f":"SUMIFS(Scores!$I:$I,Scores!$B:$B,Synthèse!I$2,Scores!$C:$C,Synthèse!$B10)","v":0},{"$f":"SUMIFS(Scores!$H:$H,Scores!$B:$B,Synthèse!J$2,Scores!$C:$C,Synthèse!$B10)","v":0},{"$f":"SUMIFS(Scores!$I:$I,Scores!$B:$B,Synthèse!K$2,Scores!$C:$C,Synthèse!$B10)","v":0},{"$f":"SUMIFS(Scores!$H:$H,Scores!$B:$B,Synthèse!L$2,Scores!$C:$C,Synthèse!$B10)","v":0},{"$f":"SUMIFS(Scores!$I:$I,Scores!$B:$B,Synthèse!M$2,Scores!$C:$C,Synthèse!$B10)","v":0},{"$f":"SUMIFS(Scores!$H:$H,Scores!$B:$B,Synthèse!N$2,Scores!$C:$C,Synthèse!$B10)","v":0},{"$f":"SUMIFS(Scores!$I:$I,Scores!$B:$B,Synthèse!O$2,Scores!$C:$C,Synthèse!$B10)","v":0},{"$f":"SUMIFS(Scores!$H:$H,Scores!$B:$B,Synthèse!P$2,Scores!$C:$C,Synthèse!$B10)","v":0},{"$f":"SUMIFS(Scores!$I:$I,Scores!$B:$B,Synthèse!Q$2,Scores!$C:$C,Synthèse!$B10)","v":0}]
[null,"Johanne Choquette","F",0,0,{"$f":"SUMIFS(Scores!$H:$H,Scores!$B:$B,Synthèse!F$2,Scores!$C:$C,Synthèse!$B11)","v":0},{"$f":"SUMIFS(Scores!$I:$I,Scores!$B:$B,Synthèse!G$2,Scores!$C:$C,Synthèse!$B11)","v":0},{"$f":"SUMIFS(Scores!$H:$H,Scores!$B:$B,Synthèse!H$2,Scores!$C:$C,Synthèse!$B11)","v":0},{"$f":"SUMIFS(Scores!$I:$I,Scores!$B:$B,Synthèse!I$2,Scores!$C:$C,Synthèse!$B11)","v":0},{"$f":"SUMIFS(Scores!$H:$H,Scores!$B:$B,Synthèse!J$2,Scores!$C:$C,Synthèse!$B11)","v":0},{"$f":"SUMIFS(Scores!$I:$I,Scores!$B:$B,Synthèse!K$2,Scores!$C:$C,Synthèse!$B11)","v":0},{"$f":"SUMIFS(Scores!$H:$H,Scores!$B:$B,Synthèse!L$2,Scores!$C:$C,Synthèse!$B11)","v":0},{"$f":"SUMIFS(Scores!$I:$I,Scores!$B:$B,Synthèse!M$2,Scores!$C:$C,Synthèse!$B11)","v":0},{"$f":"SUMIFS(Scores!$H:$H,Scores!$B:$B,Synthèse!N$2,Scores!$C:$C,Synthèse!$B11)","v":0},{"$f":"SUMIFS(Scores!$I:$I,Scores!$B:$B,Synthèse!O$2,Scores!$C:$C,Synthèse!$B11)","v":0},{"$f":"SUMIFS(Scores!$H:$H,Scores!$B:$B,Synthèse!P$2,Scores!$C:$C,Synthèse!$B11)","v":0},{"$f":"SUMIFS(Scores!$I:$I,Scores!$B:$B,Synthèse!Q$2,Scores!$C:$C,Synthèse!$B11)","v":0}]
[null,"Ovide Lafrance","H",0,0,{"$f":"SUMIFS(Scores!$H:$H,Scores!$B:$B,Synthèse!F$2,Scores!$C:$C,Synthèse!$B12)","v":0},{"$f":"SUMIFS(Scores!$I:$I,Scores!$B:$B,Synthèse!G$2,Scores!$C:$C,Synthèse!$B12)","v":0},{"$f":"SUMIFS(Scores!$H:$H,Scores!$B:$B,Synthèse!H$2,Scores!$C:$C,Synthèse!$B12)","v":0},{"$f":"SUMIFS(Scores!$I:$I,Scores!$B:$B,Synthèse!I$2,Scores!$C:$C,Synthèse!$B12)","v":0},{"$f":"SUMIFS(Scores!$H:$H,Scores!$B:$B,Synthèse!J$2,Scores!$C:$C,Synthèse!$B12)","v":0},{"$f":"SUMIFS(Scores!$I:$I,Scores!$B:$B,Synthèse!K$2,Scores!$C:$C,Synthèse!$B12)","v":0},{"$f":"SUMIFS(Scores!$H:$H,Scores!$B:$B,Synthèse!L$2,Scores!$C:$C,Synthèse!$B12)","v":0},{"$f":"SUMIFS(Scores!$I:$I,Scores!$B:$B,Synthèse!M$2,Scores!$C:$C,Synthèse!$B12)","v":0},{"$f":"SUMIFS(Scores!$H:$H,Scores!$B:$B,Synthèse!N$2,Scores!$C:$C,Synthèse!$B12)","v":0},{"$f":"SUMIFS(Scores!$I:$I,Scores!$B:$B,Synthèse!O$2,Scores!$C:$C,Synthèse!$B12)","v":0},{"$f":"SUMIFS(Scores!$H:$H,Scores!$B:$B,Synthèse!P$2,Scores!$C:$C,Synthèse!$B12)","v":0},{"$f":"SUMIFS(Scores!$I:$I,Scores!$B:$B,Synthèse!Q$2,Scores!$C:$C,Synthèse!$B12)","v":0}]
[null,"Richard Lemay","H",0,0,{"$f":"SUMIFS(Scores!$H:$H,Scores!$B:$B,Synthèse!F$2,Scores!$C:$C,Synthèse!$B13)","v":0},{"$f":"SUMIFS(Scores!$I:$I,Scores!$B:$B,Synthèse!G$2,Scores!$C:$C,Synthèse!$B13)","v":0},{"$f":"SUMIFS(Scores!$H:$H,Scores!$B:$B,Synthèse!H$2,Scores!$C:$C,Synthèse!$B13)","v":0},{"$f":"SUMIFS(Scores!$I:$I,Scores!$B:$B,Synthèse!I$2,Scores!$C:$C,Synthèse!$B13)","v":0},{"$f":"SUMIFS(Scores!$H:$H,Scores!$B:$B,Synthèse!J$2,Scores!$C:$C,Synthèse!$B13)","v":0},{"$f":"SUMIFS(Scores!$I:$I,Scores!$B:$B,Synthèse!K$2,Scores!$C:$C,Synthèse!$B13)","v":0},{"$f":"SUMIFS(Scores!$H:$H,Scores!$B:$B,Synthèse!L$2,Scores!$C:$C,Synthèse!$B13)","v":0},{"$f":"SUMIFS(Scores!$I:$I,Scores!$B:$B,Synthèse!M$2,Scores!$C:$C,Synthèse!$B13)","v":0},{"$f":"SUMIFS(Scores!$H:$H,Scores!$B:$B,Synthèse!N$2,Scores!$C:$C,Synthèse!$B13)","v":0},{"$f":"SUMIFS(Scores!$I:$I,Scores!$B:$B,Synthèse!O$2,Scores!$C:$C,Synthèse!$B13)","v":0},{"$f":"SUMIFS(Scores!$H:$H,Scores!$B:$B,Synthèse!P$2,Scores!$C:$C,Synthèse!$B13)","v":0},{"$f":"SUMIFS(Scores!$I:$I,Scores!$B:$B,Synthèse!Q$2,Scores!$C:$C,Synthèse!$B13)","v":0}]
[null,"Monique Cyr Boucher","F",0,0,{"$f":"SUMIFS(Scores!$H:$H,Scores!$B:$B,Synthèse!F$2,Scores!$C:$C,Synthèse!$B14)","v":0},{"$f":"SUMIFS(Scores!$I:$I,Scores!$B:$B,Synthèse!G$2,Scores!$C:$C,Synthèse!$B14)","v":0},{"$f":"SUMIFS(Scores!$H:$H,Scores!$B:$B,Synthèse!H$2,Scores!$C:$C,Synthèse!$B14)","v":0},{"$f":"SUMIFS(Scores!$I:$I,Scores!$B:$B,Synthèse!I$2,Scores!$C:$C,Synthèse!$B14)","v":0},{"$f":"SUMIFS(Scores!$H:$H,Scores!$B:$B,Synthèse!J$2,Scores!$C:$C,Synthèse!$B14)","v":0},{"$f":"SUMIFS(Scores!$I:$I,Scores!$B:$B,Synthèse!K$2,Scores!$C:$C,Synthèse!$B14)","v":0},{"$f":"SUMIFS(Scores!$H:$H,Scores!$B:$B,Synthèse!L$2,Scores!$C:$C,Synthèse!$B14)","v":0},{"$f":"SUMIFS(Scores!$I:$I,Scores!$B:$B,Synthèse!M$2,Scores!$C:$C,Synthèse!$B14)","v":0},{"$f":"SUMIFS(Scores!$H:$H,Scores!$B:$B,Synthèse!N$2,Scores!$C:$C,Synthèse!$B14)","v":0},{"$f":"SUMIFS(Scores!$I:$I,Scores!$B:$B,Synthèse!O$2,Scores!$C:$C,Synthèse!$B14)","v":0},{"$f":"SUMIFS(Scores!$H:$H,Scores!$B:$B,Synthèse!P$2,Scores!$C:$C,Synthèse!$B14)","v":0},{"$f":"SUMIFS(Scores!$I:$I,Scores!$B:$B,Synthèse!Q$2,Scores!$C:$C,Synthèse!$B14)","v":0}]
[null,"Robert Deslauriers","H",0,0,{"$f":"SUMIFS(Scores!$H:$H,Scores!$B:$B,Synthèse!F$2,Scores!$C:$C,Synthèse!$B15)","v":0},{"$f":"SUMIFS(Scores!$I:$I,Scores!$B:$B,Synthèse!G$2,Scores!$C:$C,Synthèse!$B15)","v":0},{"$f":"SUMIFS(Scores!$H:$H,Scores!$B:$B,Synthèse!H$2,Scores!$C:$C,Synthèse!$B15)","v":0},{"$f":"SUMIFS(Scores!$I:$I,Scores!$B:$B,Synthèse!I$2,Scores!$C:$C,Synthèse!$B15)","v":0},{"$f":"SUMIFS(Scores!$H:$H,Scores!$B:$B,Synthèse!J$2,Scores!$C:$C,Synthèse!$B15)","v":0},{"$f":"SUMIFS(Scores!$I:$I,Scores!$B:$B,Synthèse!K$2,Scores!$C:$C,Synthèse!$B15)","v":0},{"$f":"SUMIFS(Scores!$H:$H,Scores!$B:$B,Synthèse!L$2,Scores!$C:$C,Synthèse!$B15)","v":0},{"$f":"SUMIFS(Scores!$I:$I,Scores!$B:$B,Synthèse!M$2,Scores!$C:$C,Synthèse!$B15)","v":0},{"$f":"SUMIFS(Scores!$H:$H,Scores!$B:$B,Synthèse!N$2,Scores!$C:$C,Synthèse!$B15)","v":0},{"$f":"SUMIFS(Scores!$I:$I,Scores!$B:$B,Synthèse!O$2,Scores!$C:$C,Synthèse!$B15)","v":0},{"$f":"SUMIFS(Scores!$H:$H,Scores!$B:$B,Synthèse!P$2,Scores!$C:$C,Synthèse!$B15)","v":0},{"$f":"SUMIFS(Scores!$I:$I,Scores!$B:$B,Synthèse!Q$2,Scores!$C:$C,Synthèse!$B15)","v":0}]
[null,"Carole Lafrance","F",0,0,{"$f":"SUMIFS(Scores!$H:$H,Scores!$B:$B,Synthèse!F$2,Scores!$C:$C,Synthèse!$B16)","v":0},{"$f":"SUMIFS(Scores!$I:$I,Scores!$B:$B,Synthèse!G$2,Scores!$C:$C,Synthèse!$B16)","v":0},{"$f":"SUMIFS(Scores!$H:$H,Scores!$B:$B,Synthèse!H$2,Scores!$C:$C,Synthèse!$B16)","v":0},{"$f":"SUMIFS(Scores!$I:$I,Scores!$B:$B,Synthèse!I$2,Scores!$C:$C,Synthèse!$B16)","v":0},{"$f":"SUMIFS(Scores!$H:$H,Scores!$B:$B,Synthèse!J$2,Scores!$C:$C,Synthèse!$B16)","v":0},{"$f":"SUMIFS(Scores!$I:$I,Scores!$B:$B,Synthèse!K$2,Scores!$C:$C,Synthèse!$B16)","v":0},{"$f":"SUMIFS(Scores!$H:$H,Scores!$B:$B,Synthèse!L$2,Scores!$C:$C,Synthèse!$B16)","v":0},{"$f":"SUMIFS(Scores!$I:$I,Scores!$B:$B,Synthèse!M$2,Scores!$C:$C,Synthèse!$B16)","v":0},{"$f":"SUMIFS(Scores!$H:$H,Scores!$B:$B,Synthèse!N$2,Scores!$C:$C,Synthèse!$B16)","v":0},{"$f":"SUMIFS(Scores!$I:$I,Scores!$B:$B,Synthèse!O$2,Scores!$C:$C,Synthèse!$B16)","v":0},{"$f":"SUMIFS(Scores!$H:$H,Scores!$B:$B,Synthèse!P$2,Scores!$C:$C,Synthèse!$B16)","v":0},{"$f":"SUMIFS(Scores!$I:$I,Scores!$B:$B,Synthèse!Q$2,Scores!$C:$C,Synthèse!$B16)","v":0}]
[null,"Simone Thibeault","F",0,0,{"$f":"SUMIFS(Scores!$H:$H,Scores!$B:$B,Synthèse!F$2,Scores!$C:$C,Synthèse!$B17)","v":0},{"$f":"SUMIFS(Scores!$I:$I,Scores!$B:$B,Synthèse!G$2,Scores!$C:$C,Synthèse!$B17)","v":0},{"$f":"SUMIFS(Scores!$H:$H,Scores!$B:$B,Synthèse!H$2,Scores!$C:$C,Synthèse!$B17)","v":0},{"$f":"SUMIFS(Scores!$I:$I,Scores!$B:$B,Synthèse!I$2,Scores!$C:$C,Synthèse!$B17)","v":0},{"$f":"SUMIFS(Scores!$H:$H,Scores!$B:$B,Synthèse!J$2,Scores!$C:$C,Synthèse!$B17)","v":0},{"$f":"SUMIFS(Scores!$I:$I,Scores!$B:$B,Synthèse!K$2,Scores!$C:$C,Synthèse!$B17)","v":0},{"$f":"SUMIFS(Scores!$H:$H,Scores!$B:$B,Synthèse!L$2,Scores!$C:$C,Synthèse!$B17)","v":0},{"$f":"SUMIFS(Scores!$I:$I,Scores!$B:$B,Synthèse!M$2,Scores!$C:$C,Synthèse!$B17)","v":0},{"$f":"SUMIFS(Scores!$H:$H,Scores!$B:$B,Synthèse!N$2,Scores!$C:$C,Synthèse!$B17)","v":0},{"$f":"SUMIFS(Scores!$I:$I,Scores!$B:$B,Synthèse!O$2,Scores!$C:$C,Synthèse!$B17)","v":0},{"$f":"SUMIFS(Scores!$H:$H,Scores!$B:$B,Synthèse!P$2,Scores!$C:$C,Synthèse!$B17)","v":0},{"$f":"SUMIFS(Scores!$I:$I,Scores!$B:$B,Synthèse!Q$2,Scores!$C:$C,Synthèse!$B17)","v":0}]
[null,"Alain Miron","H",0,0,{"$f":"SUMIFS(Scores!$H:$H,Scores!$B:$B,Synthèse!F$2,Scores!$C:$C,Synthèse!$B18)","v":0},{"$f":"SUMIFS(Scores!$I:$I,Scores!$B:$B,Synthèse!G$2,Scores!$C:$C,Synthèse!$B18)","v":0},{"$f":"SUMIFS(Scores!$H:$H,Scores!$B:$B,Synthèse!H$2,Scores!$C:$C,Synthèse!$B18)","v":0},{"$f":"SUMIFS(Scores!$I:$I,Scores!$B:$B,Synthèse!I$2,Scores!$C:$C,Synthèse!$B18)","v":0},{"$f":"SUMIFS(Scores!$H:$H,Scores!$B:$B,Synthèse!J$2,Scores!$C:$C,Synthèse!$B18)","v":0},{"$f":"SUMIFS(Scores!$I:$I,Scores!$B:$B,Synthèse!K$2,Scores!$C:$C,Synthèse!$B18)","v":0},{"$f":"SUMIFS(Scores!$H:$H,Scores!$B:$B,Synthèse!L$2,Scores!$C:$C,Synthèse!$B18)","v":0},{"$f":"SUMIFS(Scores!$I:$I,Scores!$B:$B,Synthèse!M$2,Scores!$C:$C,Synthèse!$B18)","v":0},{"$f":"SUMIFS(Scores!$H:$H,Scores!$B:$B,Synthèse!N$2,Scores!$C:$C,Synthèse!$B18)","v":0},{"$f":"SUMIFS(Scores!$I:$I,Scores!$B:$B,Synthèse!O$2,Scores!$C:$C,Synthèse!$B18)","v":0},{"$f":"SUMIFS(Scores!$H:$H,Scores!$B:$B,Synthèse!P$2,Scores!$C:$C,Synthèse!$B18)","v":0},{"$f":"SUMIFS(Scores!$I:$I,Scores!$B:$B,Synthèse!Q$2,Scores!$C:$C,Synthèse!$B18)","v":0}]
[null,"Louis-Georges Dumais","H",0,0,{"$f":"SUMIFS(Scores!$H:$H,Scores!$B:$B,Synthèse!F$2,Scores!$C:$C,Synthèse!$B19)","v":0},{"$f":"SUMIFS(Scores!$I:$I,Scores!$B:$B,Synthèse!G$2,Scores!$C:$C,Synthèse!$B19)","v":0},{"$f":"SUMIFS(Scores!$H:$H,Scores!$B:$B,Synthèse!H$2,Scores!$C:$C,Synthèse!$B19)","v":0},{"$f":"SUMIFS(Scores!$I:$I,Scores!$B:$B,Synthèse!I$2,Scores!$C:$C,Synthèse!$B19)","v":0},{"$f":"SUMIFS(Scores!$H:$H,Scores!$B:$B,Synthèse!J$2,Scores!$C:$C,Synthèse!$B19)","v":0},{"$f":"SUMIFS(Scores!$I:$I,Scores!$B:$B,Synthèse!K$2,Scores!$C:$C,Synthèse!$B19)","v":0},{"$f":"SUMIFS(Scores!$H:$H,Scores!$B:$B,Synthèse!L$2,Scores!$C:$C,Synthèse!$B19)","v":0},{"$f":"SUMIFS(Scores!$I:$I,Scores!$B:$B,Synthèse!M$2,Scores!$C:$C,Synthèse!$B19)","v":0},{"$f":"SUMIFS(Scores!$H:$H,Scores!$B:$B,Synthèse!N$2,Scores!$C:$C,Synthèse!$B19)","v":0},{"$f":"SUMIFS(Scores!$I:$I,Scores!$B:$B,Synthèse!O$2,Scores!$C:$C,Synthèse!$B19)","v":0},{"$f":"SUMIFS(Scores!$H:$H,Scores!$B:$B,Synthèse!P$2,Scores!$C:$C,Synthèse!$B19)","v":0},{"$f":"SUMIFS(Scores!$I:$I,Scores!$B:$B,Synthèse!Q$2,Scores!$C:$C,Synthèse!$B19)","v":0}]
[null,"André Desalliers                                                                                      ","H",0,0,{"$f":"SUMIFS(Scores!$H:$H,Scores!$B:$B,Synthèse!F$2,Scores!$C:$C,Synthèse!$B20)","v":0},{"$f":"SUMIFS(Scores!$I:$I,Scores!$B:$B,Synthèse!G$2,Scores!$C:$C,Synthèse!$B20)","v":0},{"$f":"SUMIFS(Scores!$H:$H,Scores!$B:$B,Synthèse!H$2,Scores!$C:$C,Synthèse!$B20)","v":0},{"$f":"SUMIFS(Scores!$I:$I,Scores!$B:$B,Synthèse!I$2,Scores!$C:$C,Synthèse!$B20)","v":0},{"$f":"SUMIFS(Scores!$H:$H,Scores!$B:$B,Synthèse!J$2,Scores!$C:$C,Synthèse!$B20)","v":0},{"$f":"SUMIFS(Scores!$I:$I,Scores!$B:$B,Synthèse!K$2,Scores!$C:$C,Synthèse!$B20)","v":0},{"$f":"SUMIFS(Scores!$H:$H,Scores!$B:$B,Synthèse!L$2,Scores!$C:$C,Synthèse!$B20)","v":0},{"$f":"SUMIFS(Scores!$I:$I,Scores!$B:$B,Synthèse!M$2,Scores!$C:$C,Synthèse!$B20)","v":0},{"$f":"SUMIFS(Scores!$H:$H,Scores!$B:$B,Synthèse!N$2,Scores!$C:$C,Synthèse!$B20)","v":0},{"$f":"SUMIFS(Scores!$I:$I,Scores!$B:$B,Synthèse!O$2,Scores!$C:$C,Synthèse!$B20)","v":0},{"$f":"SUMIFS(Scores!$H:$H,Scores!$B:$B,Synthèse!P$2,Scores!$C:$C,Synthèse!$B20)","v":0},{"$f":"SUMIFS(Scores!$I:$I,Scores!$B:$B,Synthèse!Q$2,Scores!$C:$C,Synthèse!$B20)","v":0}]
[null,"Yvon Paquin","H",0,0,{"$f":"SUMIFS(Scores!$H:$H,Scores!$B:$B,Synthèse!F$2,Scores!$C:$C,Synthèse!$B21)","v":0},{"$f":"SUMIFS(Scores!$I:$I,Scores!$B:$B,Synthèse!G$2,Scores!$C:$C,Synthèse!$B21)","v":0},{"$f":"SUMIFS(Scores!$H:$H,Scores!$B:$B,Synthèse!H$2,Scores!$C:$C,Synthèse!$B21)","v":0},{"$f":"SUMIFS(Scores!$I:$I,Scores!$B:$B,Synthèse!I$2,Scores!$C:$C,Synthèse!$B21)","v":0},{"$f":"SUMIFS(Scores!$H:$H,Scores!$B:$B,Synthèse!J$2,Scores!$C:$C,Synthèse!$B21)","v":0},{"$f":"SUMIFS(Scores!$I:$I,Scores!$B:$B,Synthèse!K$2,Scores!$C:$C,Synthèse!$B21)","v":0},{"$f":"SUMIFS(Scores!$H:$H,Scores!$B:$B,Synthèse!L$2,Scores!$C:$C,Synthèse!$B21)","v":0},{"$f":"SUMIFS(Scores!$I:$I,Scores!$B:$B,Synthèse!M$2,Scores!$C:$C,Synthèse!$B21)","v":0},{"$f":"SUMIFS(Scores!$H:$H,Scores!$B:$B,Synthèse!N$2,Scores!$C:$C,Synthèse!$B21)","v":0},{"$f":"SUMIFS(Scores!$I:$I,Scores!$B:$B,Synthèse!O$2,Scores!$C:$C,Synthèse!$B21)","v":0},{"$f":"SUMIFS(Scores!$H:$H,Scores!$B:$B,Synthèse!P$2,Scores!$C:$C,Synthèse!$B21)","v":0},{"$f":"SUMIFS(Scores!$I:$I,Scores!$B:$B,Synthèse!Q$2,Scores!$C:$C,Synthèse!$B21)","v":0}]
[null,"Louise Gamelin","F",0,0,{"$f":"SUMIFS(Scores!$H:$H,Scores!$B:$B,Synthèse!F$2,Scores!$C:$C,Synthèse!$B22)","v":0},{"$f":"SUMIFS(Scores!$I:$I,Scores!$B:$B,Synthèse!G$2,Scores!$C:$C,Synthèse!$B22)","v":0},{"$f":"SUMIFS(Scores!$H:$H,Scores!$B:$B,Synthèse!H$2,Scores!$C:$C,Synthèse!$B22)","v":0},{"$f":"SUMIFS(Scores!$I:$I,Scores!$B:$B,Synthèse!I$2,Scores!$C:$C,Synthèse!$B22)","v":0},{"$f":"SUMIFS(Scores!$H:$H,Scores!$B:$B,Synthèse!J$2,Scores!$C:$C,Synthèse!$B22)","v":0},{"$f":"SUMIFS(Scores!$I:$I,Scores!$B:$B,Synthèse!K$2,Scores!$C:$C,Synthèse!$B22)","v":0},{"$f":"SUMIFS(Scores!$H:$H,Scores!$B:$B,Synthèse!L$2,Scores!$C:$C,Synthèse!$B22)","v":0},{"$f":"SUMIFS(Scores!$I:$I,Scores!$B:$B,Synthèse!M$2,Scores!$C:$C,Synthèse!$B22)","v":0},{"$f":"SUMIFS(Scores!$H:$H,Scores!$B:$B,Synthèse!N$2,Scores!$C:$C,Synthèse!$B22)","v":0},{"$f":"SUMIFS(Scores!$I:$I,Scores!$B:$B,Synthèse!O$2,Scores!$C:$C,Synthèse!$B22)","v":0},{"$f":"SUMIFS(Scores!$H:$H,Scores!$B:$B,Synthèse!P$2,Scores!$C:$C,Synthèse!$B22)","v":0},{"$f":"SUMIFS(Scores!$I:$I,Scores!$B:$B,Synthèse!Q$2,Scores!$C:$C,Synthèse!$B22)","v":0}]
[null,"Michelle Frappier","F",0,0,{"$f":"SUMIFS(Scores!$H:$H,Scores!$B:$B,Synthèse!F$2,Scores!$C:$C,Synthèse!$B23)","v":0},{"$f":"SUMIFS(Scores!$I:$I,Scores!$B:$B,Synthèse!G$2,Scores!$C:$C,Synthèse!$B23)","v":0},{"$f":"SUMIFS(Scores!$H:$H,Scores!$B:$B,Synthèse!H$2,Scores!$C:$C,Synthèse!$B23)","v":0},{"$f":"SUMIFS(Scores!$I:$I,Scores!$B:$B,Synthèse!I$2,Scores!$C:$C,Synthèse!$B23)","v":0},{"$f":"SUMIFS(Scores!$H:$H,Scores!$B:$B,Synthèse!J$2,Scores!$C:$C,Synthèse!$B23)","v":0},{"$f":"SUMIFS(Scores!$I:$I,Scores!$B:$B,Synthèse!K$2,Scores!$C:$C,Synthèse!$B23)","v":0},{"$f":"SUMIFS(Scores!$H:$H,Scores!$B:$B,Synthèse!L$2,Scores!$C:$C,Synthèse!$B23)","v":0},{"$f":"SUMIFS(Scores!$I:$I,Scores!$B:$B,Synthèse!M$2,Scores!$C:$C,Synthèse!$B23)","v":0},{"$f":"SUMIFS(Scores!$H:$H,Scores!$B:$B,Synthèse!N$2,Scores!$C:$C,Synthèse!$B23)","v":0},{"$f":"SUMIFS(Scores!$I:$I,Scores!$B:$B,Synthèse!O$2,Scores!$C:$C,Synthèse!$B23)","v":0},{"$f":"SUMIFS(Scores!$H:$H,Scores!$B:$B,Synthèse!P$2,Scores!$C:$C,Synthèse!$B23)","v":0},{"$f":"SUMIFS(Scores!$I:$I,Scores!$B:$B,Synthèse!Q$2,Scores!$C:$C,Synthèse!$B23)","v":0}]
[null,"Carmelle Dubé","F",0,0,{"$f":"SUMIFS(Scores!$H:$H,Scores!$B:$B,Synthèse!F$2,Scores!$C:$C,Synthèse!$B24)","v":0},{"$f":"SUMIFS(Scores!$I:$I,Scores!$B:$B,Synthèse!G$2,Scores!$C:$C,Synthèse!$B24)","v":0},{"$f":"SUMIFS(Scores!$H:$H,Scores!$B:$B,Synthèse!H$2,Scores!$C:$C,Synthèse!$B24)","v":0},{"$f":"SUMIFS(Scores!$I:$I,Scores!$B:$B,Synthèse!I$2,Scores!$C:$C,Synthèse!$B24)","v":0},{"$f":"SUMIFS(Scores!$H:$H,Scores!$B:$B,Synthèse!J$2,Scores!$C:$C,Synthèse!$B24)","v":0},{"$f":"SUMIFS(Scores!$I:$I,Scores!$B:$B,Synthèse!K$2,Scores!$C:$C,Synthèse!$B24)","v":0},{"$f":"SUMIFS(Scores!$H:$H,Scores!$B:$B,Synthèse!L$2,Scores!$C:$C,Synthèse!$B24)","v":0},{"$f":"SUMIFS(Scores!$I:$I,Scores!$B:$B,Synthèse!M$2,Scores!$C:$C,Synthèse!$B24)","v":0},{"$f":"SUMIFS(Scores!$H:$H,Scores!$B:$B,Synthèse!N$2,Scores!$C:$C,Synthèse!$B24)","v":0},{"$f":"SUMIFS(Scores!$I:$I,Scores!$B:$B,Synthèse!O$2,Scores!$C:$C,Synthèse!$B24)","v":0},{"$f":"SUMIFS(Scores!$H:$H,Scores!$B:$B,Synthèse!P$2,Scores!$C:$C,Synthèse!$B24)","v":0},{"$f":"SUMIFS(Scores!$I:$I,Scores!$B:$B,Synthèse!Q$2,Scores!$C:$C,Synthèse!$B24)","v":0}]
[null,"Yves Montreuil","H",0,0,{"$f":"SUMIFS(Scores!$H:$H,Scores!$B:$B,Synthèse!F$2,Scores!$C:$C,Synthèse!$B25)","v":0},{"$f":"SUMIFS(Scores!$I:$I,Scores!$B:$B,Synthèse!G$2,Scores!$C:$C,Synthèse!$B25)","v":0},{"$f":"SUMIFS(Scores!$H:$H,Scores!$B:$B,Synthèse!H$2,Scores!$C:$C,Synthèse!$B25)","v":0},{"$f":"SUMIFS(Scores!$I:$I,Scores!$B:$B,Synthèse!I$2,Scores!$C:$C,Synthèse!$B25)","v":0},{"$f":"SUMIFS(Scores!$H:$H,Scores!$B:$B,Synthèse!J$2,Scores!$C:$C,Synthèse!$B25)","v":0},{"$f":"SUMIFS(Scores!$I:$I,Scores!$B:$B,Synthèse!K$2,Scores!$C:$C,Synthèse!$B25)","v":0},{"$f":"SUMIFS(Scores!$H:$H,Scores!$B:$B,Synthèse!L$2,Scores!$C:$C,Synthèse!$B25)","v":0},{"$f":"SUMIFS(Scores!$I:$I,Scores!$B:$B,Synthèse!M$2,Scores!$C:$C,Synthèse!$B25)","v":0},{"$f":"SUMIFS(Scores!$H:$H,Scores!$B:$B,Synthèse!N$2,Scores!$C:$C,Synthèse!$B25)","v":0},{"$f":"SUMIFS(Scores!$I:$I,Scores!$B:$B,Synthèse!O$2,Scores!$C:$C,Synthèse!$B25)","v":0},{"$f":"SUMIFS(Scores!$H:$H,Scores!$B:$B,Synthèse!P$2,Scores!$C:$C,Synthèse!$B25)","v":0},{"$f":"SUMIFS(Scores!$I:$I,Scores!$B:$B,Synthèse!Q$2,Scores!$C:$C,Synthèse!$B25)","v":0}]
[null,"Georgette Rocheleau","F",0,0,{"$f":"SUMIFS(Scores!$H:$H,Scores!$B:$B,Synthèse!F$2,Scores!$C:$C,Synthèse!$B26)","v":0},{"$f":"SUMIFS(Scores!$I:$I,Scores!$B:$B,Synthèse!G$2,Scores!$C:$C,Synthèse!$B26)","v":0},{"$f":"SUMIFS(Scores!$H:$H,Scores!$B:$B,Synthèse!H$2,Scores!$C:$C,Synthèse!$B26)","v":0},{"$f":"SUMIFS(Scores!$I:$I,Scores!$B:$B,Synthèse!I$2,Scores!$C:$C,Synthèse!$B26)","v":0},{"$f":"SUMIFS(Scores!$H:$H,Scores!$B:$B,Synthèse!J$2,Scores!$C:$C,Synthèse!$B26)","v":0},{"$f":"SUMIFS(Scores!$I:$I,Scores!$B:$B,Synthèse!K$2,Scores!$C:$C,Synthèse!$B26)","v":0},{"$f":"SUMIFS(Scores!$H:$H,Scores!$B:$B,Synthèse!L$2,Scores!$C:$C,Synthèse!$B26)","v":0},{"$f":"SUMIFS(Scores!$I:$I,Scores!$B:$B,Synthèse!M$2,Scores!$C:$C,Synthèse!$B26)","v":0},{"$f":"SUMIFS(Scores!$H:$H,Scores!$B:$B,Synthèse!N$2,Scores!$C:$C,Synthèse!$B26)","v":0},{"$f":"SUMIFS(Scores!$I:$I,Scores!$B:$B,Synthèse!O$2,Scores!$C:$C,Synthèse!$B26)","v":0},{"$f":"SUMIFS(Scores!$H:$H,Scores!$B:$B,Synthèse!P$2,Scores!$C:$C,Synthèse!$B26)","v":0},{"$f":"SUMIFS(Scores!$I:$I,Scores!$B:$B,Synthèse!Q$2,Scores!$C:$C,Synthèse!$B26)","v":0}]
[null,"Raymond Descoteaux                                              ","H",0,0,{"$f":"SUMIFS(Scores!$H:$H,Scores!$B:$B,Synthèse!F$2,Scores!$C:$C,Synthèse!$B27)","v":0},{"$f":"SUMIFS(Scores!$I:$I,Scores!$B:$B,Synthèse!G$2,Scores!$C:$C,Synthèse!$B27)","v":0},{"$f":"SUMIFS(Scores!$H:$H,Scores!$B:$B,Synthèse!H$2,Scores!$C:$C,Synthèse!$B27)","v":0},{"$f":"SUMIFS(Scores!$I:$I,Scores!$B:$B,Synthèse!I$2,Scores!$C:$C,Synthèse!$B27)","v":0},{"$f":"SUMIFS(Scores!$H:$H,Scores!$B:$B,Synthèse!J$2,Scores!$C:$C,Synthèse!$B27)","v":0},{"$f":"SUMIFS(Scores!$I:$I,Scores!$B:$B,Synthèse!K$2,Scores!$C:$C,Synthèse!$B27)","v":0},{"$f":"SUMIFS(Scores!$H:$H,Scores!$B:$B,Synthèse!L$2,Scores!$C:$C,Synthèse!$B27)","v":0},{"$f":"SUMIFS(Scores!$I:$I,Scores!$B:$B,Synthèse!M$2,Scores!$C:$C,Synthèse!$B27)","v":0},{"$f":"SUMIFS(Scores!$H:$H,Scores!$B:$B,Synthèse!N$2,Scores!$C:$C,Synthèse!$B27)","v":0},{"$f":"SUMIFS(Scores!$I:$I,Scores!$B:$B,Synthèse!O$2,Scores!$C:$C,Synthèse!$B27)","v":0},{"$f":"SUMIFS(Scores!$H:$H,Scores!$B:$B,Synthèse!P$2,Scores!$C:$C,Synthèse!$B27)","v":0},{"$f":"SUMIFS(Scores!$I:$I,Scores!$B:$B,Synthèse!Q$2,Scores!$C:$C,Synthèse!$B27)","v":0}]
[null,"Lucie Charron","F",0,0,{"$f":"SUMIFS(Scores!$H:$H,Scores!$B:$B,Synthèse!F$2,Scores!$C:$C,Synthèse!$B28)","v":0},{"$f":"SUMIFS(Scores!$I:$I,Scores!$B:$B,Synthèse!G$2,Scores!$C:$C,Synthèse!$B28)","v":0},{"$f":"SUMIFS(Scores!$H:$H,Scores!$B:$B,Synthèse!H$2,Scores!$C:$C,Synthèse!$B28)","v":0},{"$f":"SUMIFS(Scores!$I:$I,Scores!$B:$B,Synthèse!I$2,Scores!$C:$C,Synthèse!$B28)","v":0},{"$f":"SUMIFS(Scores!$H:$H,Scores!$B:$B,Synthèse!J$2,Scores!$C:$C,Synthèse!$B28)","v":0},{"$f":"SUMIFS(Scores!$I:$I,Scores!$B:$B,Synthèse!K$2,Scores!$C:$C,Synthèse!$B28)","v":0},{"$f":"SUMIFS(Scores!$H:$H,Scores!$B:$B,Synthèse!L$2,Scores!$C:$C,Synthèse!$B28)","v":0},{"$f":"SUMIFS(Scores!$I:$I,Scores!$B:$B,Synthèse!M$2,Scores!$C:$C,Synthèse!$B28)","v":0},{"$f":"SUMIFS(Scores!$H:$H,Scores!$B:$B,Synthèse!N$2,Scores!$C:$C,Synthèse!$B28)","v":0},{"$f":"SUMIFS(Scores!$I:$I,Scores!$B:$B,Synthèse!O$2,Scores!$C:$C,Synthèse!$B28)","v":0},{"$f":"SUMIFS(Scores!$H:$H,Scores!$B:$B,Synthèse!P$2,Scores!$C:$C,Synthèse!$B28)","v":0},{"$f":"SUMIFS(Scores!$I:$I,Scores!$B:$B,Synthèse!Q$2,Scores!$C:$C,Synthèse!$B28)","v":0}]
[null,"Claudette Marquis","F",0,0,{"$f":"SUMIFS(Scores!$H:$H,Scores!$B:$B,Synthèse!F$2,Scores!$C:$C,Synthèse!$B29)","v":0},{"$f":"SUMIFS(Scores!$I:$I,Scores!$B:$B,Synthèse!G$2,Scores!$C:$C,Synthèse!$B29)","v":0},{"$f":"SUMIFS(Scores!$H:$H,Scores!$B:$B,Synthèse!H$2,Scores!$C:$C,Synthèse!$B29)","v":0},{"$f":"SUMIFS(Scores!$I:$I,Scores!$B:$B,Synthèse!I$2,Scores!$C:$C,Synthèse!$B29)","v":0},{"$f":"SUMIFS(Scores!$H:$H,Scores!$B:$B,Synthèse!J$2,Scores!$C:$C,Synthèse!$B29)","v":0},{"$f":"SUMIFS(Scores!$I:$I,Scores!$B:$B,Synthèse!K$2,Scores!$C:$C,Synthèse!$B29)","v":0},{"$f":"SUMIFS(Scores!$H:$H,Scores!$B:$B,Synthèse!L$2,Scores!$C:$C,Synthèse!$B29)","v":0},{"$f":"SUMIFS(Scores!$I:$I,Scores!$B:$B,Synthèse!M$2,Scores!$C:$C,Synthèse!$B29)","v":0},{"$f":"SUMIFS(Scores!$H:$H,Scores!$B:$B,Synthèse!N$2,Scores!$C:$C,Synthèse!$B29)","v":0},{"$f":"SUMIFS(Scores!$I:$I,Scores!$B:$B,Synthèse!O$2,Scores!$C:$C,Synthèse!$B29)","v":0},{"$f":"SUMIFS(Scores!$H:$H,Scores!$B:$B,Synthèse!P$2,Scores!$C:$C,Synthèse!$B29)","v":0},{"$f":"SUMIFS(Scores!$I:$I,Scores!$B:$B,Synthèse!Q$2,Scores!$C:$C,Synthèse!$B29)","v":0}]
[null,"Ginette Duguas","F",0,0,{"$f":"SUMIFS(Scores!$H:$H,Scores!$B:$B,Synthèse!F$2,Scores!$C:$C,Synthèse!$B30)","v":0},{"$f":"SUMIFS(Scores!$I:$I,Scores!$B:$B,Synthèse!G$2,Scores!$C:$C,Synthèse!$B30)","v":0},{"$f":"SUMIFS(Scores!$H:$H,Scores!$B:$B,Synthèse!H$2,Scores!$C:$C,Synthèse!$B30)","v":0},{"$f":"SUMIFS(Scores!$I:$I,Scores!$B:$B,Synthèse!I$2,Scores!$C:$C,Synthèse!$B30)","v":0},{"$f":"SUMIFS(Scores!$H:$H,Scores!$B:$B,Synthèse!J$2,Scores!$C:$C,Synthèse!$B30)","v":0},{"$f":"SUMIFS(Scores!$I:$I,Scores!$B:$B,Synthèse!K$2,Scores!$C:$C,Synthèse!$B30)","v":0},{"$f":"SUMIFS(Scores!$H:$H,Scores!$B:$B,Synthèse!L$2,Scores!$C:$C,Synthèse!$B30)","v":0},{"$f":"SUMIFS(Scores!$I:$I,Scores!$B:$B,Synthèse!M$2,Scores!$C:$C,Synthèse!$B30)","v":0},{"$f":"SUMIFS(Scores!$H:$H,Scores!$B:$B,Synthèse!N$2,Scores!$C:$C,Synthèse!$B30)","v":0},{"$f":"SUMIFS(Scores!$I:$I,Scores!$B:$B,Synthèse!O$2,Scores!$C:$C,Synthèse!$B30)","v":0},{"$f":"SUMIFS(Scores!$H:$H,Scores!$B:$B,Synthèse!P$2,Scores!$C:$C,Synthèse!$B30)","v":0},{"$f":"SUMIFS(Scores!$I:$I,Scores!$B:$B,Synthèse!Q$2,Scores!$C:$C,Synthèse!$B30)","v":0}]
[null,"Maryse Bilodeau","F",0,0,{"$f":"SUMIFS(Scores!$H:$H,Scores!$B:$B,Synthèse!F$2,Scores!$C:$C,Synthèse!$B31)","v":0},{"$f":"SUMIFS(Scores!$I:$I,Scores!$B:$B,Synthèse!G$2,Scores!$C:$C,Synthèse!$B31)","v":0},{"$f":"SUMIFS(Scores!$H:$H,Scores!$B:$B,Synthèse!H$2,Scores!$C:$C,Synthèse!$B31)","v":0},{"$f":"SUMIFS(Scores!$I:$I,Scores!$B:$B,Synthèse!I$2,Scores!$C:$C,Synthèse!$B31)","v":0},{"$f":"SUMIFS(Scores!$H:$H,Scores!$B:$B,Synthèse!J$2,Scores!$C:$C,Synthèse!$B31)","v":0},{"$f":"SUMIFS(Scores!$I:$I,Scores!$B:$B,Synthèse!K$2,Scores!$C:$C,Synthèse!$B31)","v":0},{"$f":"SUMIFS(Scores!$H:$H,Scores!$B:$B,Synthèse!L$2,Scores!$C:$C,Synthèse!$B31)","v":0},{"$f":"SUMIFS(Scores!$I:$I,Scores!$B:$B,Synthèse!M$2,Scores!$C:$C,Synthèse!$B31)","v":0},{"$f":"SUMIFS(Scores!$H:$H,Scores!$B:$B,Synthèse!N$2,Scores!$C:$C,Synthèse!$B31)","v":0},{"$f":"SUMIFS(Scores!$I:$I,Scores!$B:$B,Synthèse!O$2,Scores!$C:$C,Synthèse!$B31)","v":0},{"$f":"SUMIFS(Scores!$H:$H,Scores!$B:$B,Synthèse!P$2,Scores!$C:$C,Synthèse!$B31)","v":0},{"$f":"SUMIFS(Scores!$I:$I,Scores!$B:$B,Synthèse!Q$2,Scores!$C:$C,Synthèse!$B31)","v":0}]
[null,"Ginette Belec                                       ","F",0,0,{"$f":"SUMIFS(Scores!$H:$H,Scores!$B:$B,Synthèse!F$2,Scores!$C:$C,Synthèse!$B32)","v":0},{"$f":"SUMIFS(Scores!$I:$I,Scores!$B:$B,Synthèse!G$2,Scores!$C:$C,Synthèse!$B32)","v":0},{"$f":"SUMIFS(Scores!$H:$H,Scores!$B:$B,Synthèse!H$2,Scores!$C:$C,Synthèse!$B32)","v":0},{"$f":"SUMIFS(Scores!$I:$I,Scores!$B:$B,Synthèse!I$2,Scores!$C:$C,Synthèse!$B32)","v":0},{"$f":"SUMIFS(Scores!$H:$H,Scores!$B:$B,Synthèse!J$2,Scores!$C:$C,Synthèse!$B32)","v":0},{"$f":"SUMIFS(Scores!$I:$I,Scores!$B:$B,Synthèse!K$2,Scores!$C:$C,Synthèse!$B32)","v":0},{"$f":"SUMIFS(Scores!$H:$H,Scores!$B:$B,Synthèse!L$2,Scores!$C:$C,Synthèse!$B32)","v":0},{"$f":"SUMIFS(Scores!$I:$I,Scores!$B:$B,Synthèse!M$2,Scores!$C:$C,Synthèse!$B32)","v":0},{"$f":"SUMIFS(Scores!$H:$H,Scores!$B:$B,Synthèse!N$2,Scores!$C:$C,Synthèse!$B32)","v":0},{"$f":"SUMIFS(Scores!$I:$I,Scores!$B:$B,Synthèse!O$2,Scores!$C:$C,Synthèse!$B32)","v":0},{"$f":"SUMIFS(Scores!$H:$H,Scores!$B:$B,Synthèse!P$2,Scores!$C:$C,Synthèse!$B32)","v":0},{"$f":"SUMIFS(Scores!$I:$I,Scores!$B:$B,Synthèse!Q$2,Scores!$C:$C,Synthèse!$B32)","v":0}]
[null,"Jean-Claude Ouimet","H",0,0,{"$f":"SUMIFS(Scores!$H:$H,Scores!$B:$B,Synthèse!F$2,Scores!$C:$C,Synthèse!$B33)","v":0},{"$f":"SUMIFS(Scores!$I:$I,Scores!$B:$B,Synthèse!G$2,Scores!$C:$C,Synthèse!$B33)","v":0},{"$f":"SUMIFS(Scores!$H:$H,Scores!$B:$B,Synthèse!H$2,Scores!$C:$C,Synthèse!$B33)","v":0},{"$f":"SUMIFS(Scores!$I:$I,Scores!$B:$B,Synthèse!I$2,Scores!$C:$C,Synthèse!$B33)","v":0},{"$f":"SUMIFS(Scores!$H:$H,Scores!$B:$B,Synthèse!J$2,Scores!$C:$C,Synthèse!$B33)","v":0},{"$f":"SUMIFS(Scores!$I:$I,Scores!$B:$B,Synthèse!K$2,Scores!$C:$C,Synthèse!$B33)","v":0},{"$f":"SUMIFS(Scores!$H:$H,Scores!$B:$B,Synthèse!L$2,Scores!$C:$C,Synthèse!$B33)","v":0},{"$f":"SUMIFS(Scores!$I:$I,Scores!$B:$B,Synthèse!M$2,Scores!$C:$C,Synthèse!$B33)","v":0},{"$f":"SUMIFS(Scores!$H:$H,Scores!$B:$B,Synthèse!N$2,Scores!$C:$C,Synthèse!$B33)","v":0},{"$f":"SUMIFS(Scores!$I:$I,Scores!$B:$B,Synthèse!O$2,Scores!$C:$C,Synthèse!$B33)","v":0},{"$f":"SUMIFS(Scores!$H:$H,Scores!$B:$B,Synthèse!P$2,Scores!$C:$C,Synthèse!$B33)","v":0},{"$f":"SUMIFS(Scores!$I:$I,Scores!$B:$B,Synthèse!Q$2,Scores!$C:$C,Synthèse!$B33)","v":0}]
[null,"Madeleine Dumais","F",0,0,{"$f":"SUMIFS(Scores!$H:$H,Scores!$B:$B,Synthèse!F$2,Scores!$C:$C,Synthèse!$B34)","v":0},{"$f":"SUMIFS(Scores!$I:$I,Scores!$B:$B,Synthèse!G$2,Scores!$C:$C,Synthèse!$B34)","v":0},{"$f":"SUMIFS(Scores!$H:$H,Scores!$B:$B,Synthèse!H$2,Scores!$C:$C,Synthèse!$B34)","v":0},{"$f":"SUMIFS(Scores!$I:$I,Scores!$B:$B,Synthèse!I$2,Scores!$C:$C,Synthèse!$B34)","v":0},{"$f":"SUMIFS(Scores!$H:$H,Scores!$B:$B,Synthèse!J$2,Scores!$C:$C,Synthèse!$B34)","v":0},{"$f":"SUMIFS(Scores!$I:$I,Scores!$B:$B,Synthèse!K$2,Scores!$C:$C,Synthèse!$B34)","v":0},{"$f":"SUMIFS(Scores!$H:$H,Scores!$B:$B,Synthèse!L$2,Scores!$C:$C,Synthèse!$B34)","v":0},{"$f":"SUMIFS(Scores!$I:$I,Scores!$B:$B,Synthèse!M$2,Scores!$C:$C,Synthèse!$B34)","v":0},{"$f":"SUMIFS(Scores!$H:$H,Scores!$B:$B,Synthèse!N$2,Scores!$C:$C,Synthèse!$B34)","v":0},{"$f":"SUMIFS(Scores!$I:$I,Scores!$B:$B,Synthèse!O$2,Scores!$C:$C,Synthèse!$B34)","v":0},{"$f":"SUMIFS(Scores!$H:$H,Scores!$B:$B,Synthèse!P$2,Scores!$C:$C,Synthèse!$B34)","v":0},{"$f":"SUMIFS(Scores!$I:$I,Scores!$B:$B,Synthèse!Q$2,Scores!$C:$C,Synthèse!$B34)","v":0}]
[null,"Shirley Arcand","F",0,0,{"$f":"SUMIFS(Scores!$H:$H,Scores!$B:$B,Synthèse!F$2,Scores!$C:$C,Synthèse!$B35)","v":0},{"$f":"SUMIFS(Scores!$I:$I,Scores!$B:$B,Synthèse!G$2,Scores!$C:$C,Synthèse!$B35)","v":0},{"$f":"SUMIFS(Scores!$H:$H,Scores!$B:$B,Synthèse!H$2,Scores!$C:$C,Synthèse!$B35)","v":0},{"$f":"SUMIFS(Scores!$I:$I,Scores!$B:$B,Synthèse!I$2,Scores!$C:$C,Synthèse!$B35)","v":0},{"$f":"SUMIFS(Scores!$H:$H,Scores!$B:$B,Synthèse!J$2,Scores!$C:$C,Synthèse!$B35)","v":0},{"$f":"SUMIFS(Scores!$I:$I,Scores!$B:$B,Synthèse!K$2,Scores!$C:$C,Synthèse!$B35)","v":0},{"$f":"SUMIFS(Scores!$H:$H,Scores!$B:$B,Synthèse!L$2,Scores!$C:$C,Synthèse!$B35)","v":0},{"$f":"SUMIFS(Scores!$I:$I,Scores!$B:$B,Synthèse!M$2,Scores!$C:$C,Synthèse!$B35)","v":0},{"$f":"SUMIFS(Scores!$H:$H,Scores!$B:$B,Synthèse!N$2,Scores!$C:$C,Synthèse!$B35)","v":0},{"$f":"SUMIFS(Scores!$I:$I,Scores!$B:$B,Synthèse!O$2,Scores!$C:$C,Synthèse!$B35)","v":0},{"$f":"SUMIFS(Scores!$H:$H,Scores!$B:$B,Synthèse!P$2,Scores!$C:$C,Synthèse!$B35)","v":0},{"$f":"SUMIFS(Scores!$I:$I,Scores!$B:$B,Synthèse!Q$2,Scores!$C:$C,Synthèse!$B35)","v":0}]
[null,"Yvette St-Pierre","F",0,0,{"$f":"SUMIFS(Scores!$H:$H,Scores!$B:$B,Synthèse!F$2,Scores!$C:$C,Synthèse!$B36)","v":0},{"$f":"SUMIFS(Scores!$I:$I,Scores!$B:$B,Synthèse!G$2,Scores!$C:$C,Synthèse!$B36)","v":0},{"$f":"SUMIFS(Scores!$H:$H,Scores!$B:$B,Synthèse!H$2,Scores!$C:$C,Synthèse!$B36)","v":0},{"$f":"SUMIFS(Scores!$I:$I,Scores!$B:$B,Synthèse!I$2,Scores!$C:$C,Synthèse!$B36)","v":0},{"$f":"SUMIFS(Scores!$H:$H,Scores!$B:$B,Synthèse!J$2,Scores!$C:$C,Synthèse!$B36)","v":0},{"$f":"SUMIFS(Scores!$I:$I,Scores!$B:$B,Synthèse!K$2,Scores!$C:$C,Synthèse!$B36)","v":0},{"$f":"SUMIFS(Scores!$H:$H,Scores!$B:$B,Synthèse!L$2,Scores!$C:$C,Synthèse!$B36)","v":0},{"$f":"SUMIFS(Scores!$I:$I,Scores!$B:$B,Synthèse!M$2,Scores!$C:$C,Synthèse!$B36)","v":0},{"$f":"SUMIFS(Scores!$H:$H,Scores!$B:$B,Synthèse!N$2,Scores!$C:$C,Synthèse!$B36)","v":0},{"$f":"SUMIFS(Scores!$I:$I,Scores!$B:$B,Synthèse!O$2,Scores!$C:$C,Synthèse!$B36)","v":0},{"$f":"SUMIFS(Scores!$H:$H,Scores!$B:$B,Synthèse!P$2,Scores!$C:$C,Synthèse!$B36)","v":0},{"$f":"SUMIFS(Scores!$I:$I,Scores!$B:$B,Synthèse!Q$2,Scores!$C:$C,Synthèse!$B36)","v":0}]
[null,"Claude Lapointe","H",0,0,{"$f":"SUMIFS(Scores!$H:$H,Scores!$B:$B,Synthèse!F$2,Scores!$C:$C,Synthèse!$B37)","v":0},{"$f":"SUMIFS(Scores!$I:$I,Scores!$B:$B,Synthèse!G$2,Scores!$C:$C,Synthèse!$B37)","v":0},{"$f":"SUMIFS(Scores!$H:$H,Scores!$B:$B,Synthèse!H$2,Scores!$C:$C,Synthèse!$B37)","v":0},{"$f":"SUMIFS(Scores!$I:$I,Scores!$B:$B,Synthèse!I$2,Scores!$C:$C,Synthèse!$B37)","v":0},{"$f":"SUMIFS(Scores!$H:$H,Scores!$B:$B,Synthèse!J$2,Scores!$C:$C,Synthèse!$B37)","v":0},{"$f":"SUMIFS(Scores!$I:$I,Scores!$B:$B,Synthèse!K$2,Scores!$C:$C,Synthèse!$B37)","v":0},{"$f":"SUMIFS(Scores!$H:$H,Scores!$B:$B,Synthèse!L$2,Scores!$C:$C,Synthèse!$B37)","v":0},{"$f":"SUMIFS(Scores!$I:$I,Scores!$B:$B,Synthèse!M$2,Scores!$C:$C,Synthèse!$B37)","v":0},{"$f":"SUMIFS(Scores!$H:$H,Scores!$B:$B,Synthèse!N$2,Scores!$C:$C,Synthèse!$B37)","v":0},{"$f":"SUMIFS(Scores!$I:$I,Scores!$B:$B,Synthèse!O$2,Scores!$C:$C,Synthèse!$B37)","v":0},{"$f":"SUMIFS(Scores!$H:$H,Scores!$B:$B,Synthèse!P$2,Scores!$C:$C,Synthèse!$B37)","v":0},{"$f":"SUMIFS(Scores!$I:$I,Scores!$B:$B,Synthèse!Q$2,Scores!$C:$C,Synthèse!$B37)","v":0}]
[null,"Guy White","H",0,0,{"$f":"SUMIFS(Scores!$H:$H,Scores!$B:$B,Synthèse!F$2,Scores!$C:$C,Synthèse!$B38)","v":0},{"$f":"SUMIFS(Scores!$I:$I,Scores!$B:$B,Synthèse!G$2,Scores!$C:$C,Synthèse!$B38)","v":0},{"$f":"SUMIFS(Scores!$H:$H,Scores!$B:$B,Synthèse!H$2,Scores!$C:$C,Synthèse!$B38)","v":0},{"$f":"SUMIFS(Scores!$I:$I,Scores!$B:$B,Synthèse!I$2,Scores!$C:$C,Synthèse!$B38)","v":0},{"$f":"SUMIFS(Scores!$H:$H,Scores!$B:$B,Synthèse!J$2,Scores!$C:$C,Synthèse!$B38)","v":0},{"$f":"SUMIFS(Scores!$I:$I,Scores!$B:$B,Synthèse!K$2,Scores!$C:$C,Synthèse!$B38)","v":0},{"$f":"SUMIFS(Scores!$H:$H,Scores!$B:$B,Synthèse!L$2,Scores!$C:$C,Synthèse!$B38)","v":0},{"$f":"SUMIFS(Scores!$I:$I,Scores!$B:$B,Synthèse!M$2,Scores!$C:$C,Synthèse!$B38)","v":0},{"$f":"SUMIFS(Scores!$H:$H,Scores!$B:$B,Synthèse!N$2,Scores!$C:$C,Synthèse!$B38)","v":0},{"$f":"SUMIFS(Scores!$I:$I,Scores!$B:$B,Synthèse!O$2,Scores!$C:$C,Synthèse!$B38)","v":0},{"$f":"SUMIFS(Scores!$H:$H,Scores!$B:$B,Synthèse!P$2,Scores!$C:$C,Synthèse!$B38)","v":0},{"$f":"SUMIFS(Scores!$I:$I,Scores!$B:$B,Synthèse!Q$2,Scores!$C:$C,Synthèse!$B38)","v":0}]
[null,"Thérèse Robert                     ","F",0,0,{"$f":"SUMIFS(Scores!$H:$H,Scores!$B:$B,Synthèse!F$2,Scores!$C:$C,Synthèse!$B39)","v":0},{"$f":"SUMIFS(Scores!$I:$I,Scores!$B:$B,Synthèse!G$2,Scores!$C:$C,Synthèse!$B39)","v":0},{"$f":"SUMIFS(Scores!$H:$H,Scores!$B:$B,Synthèse!H$2,Scores!$C:$C,Synthèse!$B39)","v":0},{"$f":"SUMIFS(Scores!$I:$I,Scores!$B:$B,Synthèse!I$2,Scores!$C:$C,Synthèse!$B39)","v":0},{"$f":"SUMIFS(Scores!$H:$H,Scores!$B:$B,Synthèse!J$2,Scores!$C:$C,Synthèse!$B39)","v":0},{"$f":"SUMIFS(Scores!$I:$I,Scores!$B:$B,Synthèse!K$2,Scores!$C:$C,Synthèse!$B39)","v":0},{"$f":"SUMIFS(Scores!$H:$H,Scores!$B:$B,Synthèse!L$2,Scores!$C:$C,Synthèse!$B39)","v":0},{"$f":"SUMIFS(Scores!$I:$I,Scores!$B:$B,Synthèse!M$2,Scores!$C:$C,Synthèse!$B39)","v":0},{"$f":"SUMIFS(Scores!$H:$H,Scores!$B:$B,Synthèse!N$2,Scores!$C:$C,Synthèse!$B39)","v":0},{"$f":"SUMIFS(Scores!$I:$I,Scores!$B:$B,Synthèse!O$2,Scores!$C:$C,Synthèse!$B39)","v":0},{"$f":"SUMIFS(Scores!$H:$H,Scores!$B:$B,Synthèse!P$2,Scores!$C:$C,Synthèse!$B39)","v":0},{"$f":"SUMIFS(Scores!$I:$I,Scores!$B:$B,Synthèse!Q$2,Scores!$C:$C,Synthèse!$B39)","v":0}]
[null,"Johanne Laporte","F",0,0,{"$f":"SUMIFS(Scores!$H:$H,Scores!$B:$B,Synthèse!F$2,Scores!$C:$C,Synthèse!$B40)","v":0},{"$f":"SUMIFS(Scores!$I:$I,Scores!$B:$B,Synthèse!G$2,Scores!$C:$C,Synthèse!$B40)","v":0},{"$f":"SUMIFS(Scores!$H:$H,Scores!$B:$B,Synthèse!H$2,Scores!$C:$C,Synthèse!$B40)","v":0},{"$f":"SUMIFS(Scores!$I:$I,Scores!$B:$B,Synthèse!I$2,Scores!$C:$C,Synthèse!$B40)","v":0},{"$f":"SUMIFS(Scores!$H:$H,Scores!$B:$B,Synthèse!J$2,Scores!$C:$C,Synthèse!$B40)","v":0},{"$f":"SUMIFS(Scores!$I:$I,Scores!$B:$B,Synthèse!K$2,Scores!$C:$C,Synthèse!$B40)","v":0},{"$f":"SUMIFS(Scores!$H:$H,Scores!$B:$B,Synthèse!L$2,Scores!$C:$C,Synthèse!$B40)","v":0},{"$f":"SUMIFS(Scores!$I:$I,Scores!$B:$B,Synthèse!M$2,Scores!$C:$C,Synthèse!$B40)","v":0},{"$f":"SUMIFS(Scores!$H:$H,Scores!$B:$B,Synthèse!N$2,Scores!$C:$C,Synthèse!$B40)","v":0},{"$f":"SUMIFS(Scores!$I:$I,Scores!$B:$B,Synthèse!O$2,Scores!$C:$C,Synthèse!$B40)","v":0},{"$f":"SUMIFS(Scores!$H:$H,Scores!$B:$B,Synthèse!P$2,Scores!$C:$C,Synthèse!$B40)","v":0},{"$f":"SUMIFS(Scores!$I:$I,Scores!$B:$B,Synthèse!Q$2,Scores!$C:$C,Synthèse!$B40)","v":0}]
[null,"Diane Major","F",0,0,{"$f":"SUMIFS(Scores!$H:$H,Scores!$B:$B,Synthèse!F$2,Scores!$C:$C,Synthèse!$B41)","v":0},{"$f":"SUMIFS(Scores!$I:$I,Scores!$B:$B,Synthèse!G$2,Scores!$C:$C,Synthèse!$B41)","v":0},{"$f":"SUMIFS(Scores!$H:$H,Scores!$B:$B,Synthèse!H$2,Scores!$C:$C,Synthèse!$B41)","v":0},{"$f":"SUMIFS(Scores!$I:$I,Scores!$B:$B,Synthèse!I$2,Scores!$C:$C,Synthèse!$B41)","v":0},{"$f":"SUMIFS(Scores!$H:$H,Scores!$B:$B,Synthèse!J$2,Scores!$C:$C,Synthèse!$B41)","v":0},{"$f":"SUMIFS(Scores!$I:$I,Scores!$B:$B,Synthèse!K$2,Scores!$C:$C,Synthèse!$B41)","v":0},{"$f":"SUMIFS(Scores!$H:$H,Scores!$B:$B,Synthèse!L$2,Scores!$C:$C,Synthèse!$B41)","v":0},{"$f":"SUMIFS(Scores!$I:$I,Scores!$B:$B,Synthèse!M$2,Scores!$C:$C,Synthèse!$B41)","v":0},{"$f":"SUMIFS(Scores!$H:$H,Scores!$B:$B,Synthèse!N$2,Scores!$C:$C,Synthèse!$B41)","v":0},{"$f":"SUMIFS(Scores!$I:$I,Scores!$B:$B,Synthèse!O$2,Scores!$C:$C,Synthèse!$B41)","v":0},{"$f":"SUMIFS(Scores!$H:$H,Scores!$B:$B,Synthèse!P$2,Scores!$C:$C,Synthèse!$B41)","v":0},{"$f":"SUMIFS(Scores!$I:$I,Scores!$B:$B,Synthèse!Q$2,Scores!$C:$C,Synthèse!$B41)","v":0}]
[null,"Monique Lauzon","F",0,0,{"$f":"SUMIFS(Scores!$H:$H,Scores!$B:$B,Synthèse!F$2,Scores!$C:$C,Synthèse!$B42)","v":0},{"$f":"SUMIFS(Scores!$I:$I,Scores!$B:$B,Synthèse!G$2,Scores!$C:$C,Synthèse!$B42)","v":0},{"$f":"SUMIFS(Scores!$H:$H,Scores!$B:$B,Synthèse!H$2,Scores!$C:$C,Synthèse!$B42)","v":0},{"$f":"SUMIFS(Scores!$I:$I,Scores!$B:$B,Synthèse!I$2,Scores!$C:$C,Synthèse!$B42)","v":0},{"$f":"SUMIFS(Scores!$H:$H,Scores!$B:$B,Synthèse!J$2,Scores!$C:$C,Synthèse!$B42)","v":0},{"$f":"SUMIFS(Scores!$I:$I,Scores!$B:$B,Synthèse!K$2,Scores!$C:$C,Synthèse!$B42)","v":0},{"$f":"SUMIFS(Scores!$H:$H,Scores!$B:$B,Synthèse!L$2,Scores!$C:$C,Synthèse!$B42)","v":0},{"$f":"SUMIFS(Scores!$I:$I,Scores!$B:$B,Synthèse!M$2,Scores!$C:$C,Synthèse!$B42)","v":0},{"$f":"SUMIFS(Scores!$H:$H,Scores!$B:$B,Synthèse!N$2,Scores!$C:$C,Synthèse!$B42)","v":0},{"$f":"SUMIFS(Scores!$I:$I,Scores!$B:$B,Synthèse!O$2,Scores!$C:$C,Synthèse!$B42)","v":0},{"$f":"SUMIFS(Scores!$H:$H,Scores!$B:$B,Synthèse!P$2,Scores!$C:$C,Synthèse!$B42)","v":0},{"$f":"SUMIFS(Scores!$I:$I,Scores!$B:$B,Synthèse!Q$2,Scores!$C:$C,Synthèse!$B42)","v":0}]
[null,"Nicole Lauzon","F",0,0,{"$f":"SUMIFS(Scores!$H:$H,Scores!$B:$B,Synthèse!F$2,Scores!$C:$C,Synthèse!$B43)","v":0},{"$f":"SUMIFS(Scores!$I:$I,Scores!$B:$B,Synthèse!G$2,Scores!$C:$C,Synthèse!$B43)","v":0},{"$f":"SUMIFS(Scores!$H:$H,Scores!$B:$B,Synthèse!H$2,Scores!$C:$C,Synthèse!$B43)","v":0},{"$f":"SUMIFS(Scores!$I:$I,Scores!$B:$B,Synthèse!I$2,Scores!$C:$C,Synthèse!$B43)","v":0},{"$f":"SUMIFS(Scores!$H:$H,Scores!$B:$B,Synthèse!J$2,Scores!$C:$C,Synthèse!$B43)","v":0},{"$f":"SUMIFS(Scores!$I:$I,Scores!$B:$B,Synthèse!K$2,Scores!$C:$C,Synthèse!$B43)","v":0},{"$f":"SUMIFS(Scores!$H:$H,Scores!$B:$B,Synthèse!L$2,Scores!$C:$C,Synthèse!$B43)","v":0},{"$f":"SUMIFS(Scores!$I:$I,Scores!$B:$B,Synthèse!M$2,Scores!$C:$C,Synthèse!$B43)","v":0},{"$f":"SUMIFS(Scores!$H:$H,Scores!$B:$B,Synthèse!N$2,Scores!$C:$C,Synthèse!$B43)","v":0},{"$f":"SUMIFS(Scores!$I:$I,Scores!$B:$B,Synthèse!O$2,Scores!$C:$C,Synthèse!$B43)","v":0},{"$f":"SUMIFS(Scores!$H:$H,Scores!$B:$B,Synthèse!P$2,Scores!$C:$C,Synthèse!$B43)","v":0},{"$f":"SUMIFS(Scores!$I:$I,Scores!$B:$B,Synthèse!Q$2,Scores!$C:$C,Synthèse!$B43)","v":0}]
[null,"Michel Fontaine","H",0,0,{"$f":"SUMIFS(Scores!$H:$H,Scores!$B:$B,Synthèse!F$2,Scores!$C:$C,Synthèse!$B44)","v":0},{"$f":"SUMIFS(Scores!$I:$I,Scores!$B:$B,Synthèse!G$2,Scores!$C:$C,Synthèse!$B44)","v":0},{"$f":"SUMIFS(Scores!$H:$H,Scores!$B:$B,Synthèse!H$2,Scores!$C:$C,Synthèse!$B44)","v":0},{"$f":"SUMIFS(Scores!$I:$I,Scores!$B:$B,Synthèse!I$2,Scores!$C:$C,Synthèse!$B44)","v":0},{"$f":"SUMIFS(Scores!$H:$H,Scores!$B:$B,Synthèse!J$2,Scores!$C:$C,Synthèse!$B44)","v":0},{"$f":"SUMIFS(Scores!$I:$I,Scores!$B:$B,Synthèse!K$2,Scores!$C:$C,Synthèse!$B44)","v":0},{"$f":"SUMIFS(Scores!$H:$H,Scores!$B:$B,Synthèse!L$2,Scores!$C:$C,Synthèse!$B44)","v":0},{"$f":"SUMIFS(Scores!$I:$I,Scores!$B:$B,Synthèse!M$2,Scores!$C:$C,Synthèse!$B44)","v":0},{"$f":"SUMIFS(Scores!$H:$H,Scores!$B:$B,Synthèse!N$2,Scores!$C:$C,Synthèse!$B44)","v":0},{"$f":"SUMIFS(Scores!$I:$I,Scores!$B:$B,Synthèse!O$2,Scores!$C:$C,Synthèse!$B44)","v":0},{"$f":"SUMIFS(Scores!$H:$H,Scores!$B:$B,Synthèse!P$2,Scores!$C:$C,Synthèse!$B44)","v":0},{"$f":"SUMIFS(Scores!$I:$I,Scores!$B:$B,Synthèse!Q$2,Scores!$C:$C,Synthèse!$B44)","v":0}]
[null,"Charles Rouleau","H",0,0,{"$f":"SUMIFS(Scores!$H:$H,Scores!$B:$B,Synthèse!F$2,Scores!$C:$C,Synthèse!$B45)","v":0},{"$f":"SUMIFS(Scores!$I:$I,Scores!$B:$B,Synthèse!G$2,Scores!$C:$C,Synthèse!$B45)","v":0},{"$f":"SUMIFS(Scores!$H:$H,Scores!$B:$B,Synthèse!H$2,Scores!$C:$C,Synthèse!$B45)","v":0},{"$f":"SUMIFS(Scores!$I:$I,Scores!$B:$B,Synthèse!I$2,Scores!$C:$C,Synthèse!$B45)","v":0},{"$f":"SUMIFS(Scores!$H:$H,Scores!$B:$B,Synthèse!J$2,Scores!$C:$C,Synthèse!$B45)","v":0},{"$f":"SUMIFS(Scores!$I:$I,Scores!$B:$B,Synthèse!K$2,Scores!$C:$C,Synthèse!$B45)","v":0},{"$f":"SUMIFS(Scores!$H:$H,Scores!$B:$B,Synthèse!L$2,Scores!$C:$C,Synthèse!$B45)","v":0},{"$f":"SUMIFS(Scores!$I:$I,Scores!$B:$B,Synthèse!M$2,Scores!$C:$C,Synthèse!$B45)","v":0},{"$f":"SUMIFS(Scores!$H:$H,Scores!$B:$B,Synthèse!N$2,Scores!$C:$C,Synthèse!$B45)","v":0},{"$f":"SUMIFS(Scores!$I:$I,Scores!$B:$B,Synthèse!O$2,Scores!$C:$C,Synthèse!$B45)","v":0},{"$f":"SUMIFS(Scores!$H:$H,Scores!$B:$B,Synthèse!P$2,Scores!$C:$C,Synthèse!$B45)","v":0},{"$f":"SUMIFS(Scores!$I:$I,Scores!$B:$B,Synthèse!Q$2,Scores!$C:$C,Synthèse!$B45)","v":0}]
[null,"Diane Toupin","F",0,0,{"$f":"SUMIFS(Scores!$H:$H,Scores!$B:$B,Synthèse!F$2,Scores!$C:$C,Synthèse!$B46)","v":0},{"$f":"SUMIFS(Scores!$I:$I,Scores!$B:$B,Synthèse!G$2,Scores!$C:$C,Synthèse!$B46)","v":0},{"$f":"SUMIFS(Scores!$H:$H,Scores!$B:$B,Synthèse!H$2,Scores!$C:$C,Synthèse!$B46)","v":0},{"$f":"SUMIFS(Scores!$I:$I,Scores!$B:$B,Synthèse!I$2,Scores!$C:$C,Synthèse!$B46)","v":0},{"$f":"SUMIFS(Scores!$H:$H,Scores!$B:$B,Synthèse!J$2,Scores!$C:$C,Synthèse!$B46)","v":0},{"$f":"SUMIFS(Scores!$I:$I,Scores!$B:$B,Synthèse!K$2,Scores!$C:$C,Synthèse!$B46)","v":0},{"$f":"SUMIFS(Scores!$H:$H,Scores!$B:$B,Synthèse!L$2,Scores!$C:$C,Synthèse!$B46)","v":0},{"$f":"SUMIFS(Scores!$I:$I,Scores!$B:$B,Synthèse!M$2,Scores!$C:$C,Synthèse!$B46)","v":0},{"$f":"SUMIFS(Scores!$H:$H,Scores!$B:$B,Synthèse!N$2,Scores!$C:$C,Synthèse!$B46)","v":0},{"$f":"SUMIFS(Scores!$I:$I,Scores!$B:$B,Synthèse!O$2,Scores!$C:$C,Synthèse!$B46)","v":0},{"$f":"SUMIFS(Scores!$H:$H,Scores!$B:$B,Synthèse!P$2,Scores!$C:$C,Synthèse!$B46)","v":0},{"$f":"SUMIFS(Scores!$I:$I,Scores!$B:$B,Synthèse!Q$2,Scores!$C:$C,Synthèse!$B46)","v":0}]
[null,"Ginette Breault","F",0,0,{"$f":"SUMIFS(Scores!$H:$H,Scores!$B:$B,Synthèse!F$2,Scores!$C:$C,Synthèse!$B47)","v":0},{"$f":"SUMIFS(Scores!$I:$I,Scores!$B:$B,Synthèse!G$2,Scores!$C:$C,Synthèse!$B47)","v":0},{"$f":"SUMIFS(Scores!$H:$H,Scores!$B:$B,Synthèse!H$2,Scores!$C:$C,Synthèse!$B47)","v":0},{"$f":"SUMIFS(Scores!$I:$I,Scores!$B:$B,Synthèse!I$2,Scores!$C:$C,Synthèse!$B47)","v":0},{"$f":"SUMIFS(Scores!$H:$H,Scores!$B:$B,Synthèse!J$2,Scores!$C:$C,Synthèse!$B47)","v":0},{"$f":"SUMIFS(Scores!$I:$I,Scores!$B:$B,Synthèse!K$2,Scores!$C:$C,Synthèse!$B47)","v":0},{"$f":"SUMIFS(Scores!$H:$H,Scores!$B:$B,Synthèse!L$2,Scores!$C:$C,Synthèse!$B47)","v":0},{"$f":"SUMIFS(Scores!$I:$I,Scores!$B:$B,Synthèse!M$2,Scores!$C:$C,Synthèse!$B47)","v":0},{"$f":"SUMIFS(Scores!$H:$H,Scores!$B:$B,Synthèse!N$2,Scores!$C:$C,Synthèse!$B47)","v":0},{"$f":"SUMIFS(Scores!$I:$I,Scores!$B:$B,Synthèse!O$2,Scores!$C:$C,Synthèse!$B47)","v":0},{"$f":"SUMIFS(Scores!$H:$H,Scores!$B:$B,Synthèse!P$2,Scores!$C:$C,Synthèse!$B47)","v":0},{"$f":"SUMIFS(Scores!$I:$I,Scores!$B:$B,Synthèse!Q$2,Scores!$C:$C,Synthèse!$B47)","v":0}]
[null,"Mariette Bouchard","F",0,0,{"$f":"SUMIFS(Scores!$H:$H,Scores!$B:$B,Synthèse!F$2,Scores!$C:$C,Synthèse!$B48)","v":0},{"$f":"SUMIFS(Scores!$I:$I,Scores!$B:$B,Synthèse!G$2,Scores!$C:$C,Synthèse!$B48)","v":0},{"$f":"SUMIFS(Scores!$H:$H,Scores!$B:$B,Synthèse!H$2,Scores!$C:$C,Synthèse!$B48)","v":0},{"$f":"SUMIFS(Scores!$I:$I,Scores!$B:$B,Synthèse!I$2,Scores!$C:$C,Synthèse!$B48)","v":0},{"$f":"SUMIFS(Scores!$H:$H,Scores!$B:$B,Synthèse!J$2,Scores!$C:$C,Synthèse!$B48)","v":0},{"$f":"SUMIFS(Scores!$I:$I,Scores!$B:$B,Synthèse!K$2,Scores!$C:$C,Synthèse!$B48)","v":0},{"$f":"SUMIFS(Scores!$H:$H,Scores!$B:$B,Synthèse!L$2,Scores!$C:$C,Synthèse!$B48)","v":0},{"$f":"SUMIFS(Scores!$I:$I,Scores!$B:$B,Synthèse!M$2,Scores!$C:$C,Synthèse!$B48)","v":0},{"$f":"SUMIFS(Scores!$H:$H,Scores!$B:$B,Synthèse!N$2,Scores!$C:$C,Synthèse!$B48)","v":0},{"$f":"SUMIFS(Scores!$I:$I,Scores!$B:$B,Synthèse!O$2,Scores!$C:$C,Synthèse!$B48)","v":0},{"$f":"SUMIFS(Scores!$H:$H,Scores!$B:$B,Synthèse!P$2,Scores!$C:$C,Synthèse!$B48)","v":0},{"$f":"SUMIFS(Scores!$I:$I,Scores!$B:$B,Synthèse!Q$2,Scores!$C:$C,Synthèse!$B48)","v":0}]
[null,"Claude Boucher (S)","H",0,0,{"$f":"SUMIFS(Scores!$H:$H,Scores!$B:$B,Synthèse!F$2,Scores!$C:$C,Synthèse!$B49)","v":0},{"$f":"SUMIFS(Scores!$I:$I,Scores!$B:$B,Synthèse!G$2,Scores!$C:$C,Synthèse!$B49)","v":0},{"$f":"SUMIFS(Scores!$H:$H,Scores!$B:$B,Synthèse!H$2,Scores!$C:$C,Synthèse!$B49)","v":0},{"$f":"SUMIFS(Scores!$I:$I,Scores!$B:$B,Synthèse!I$2,Scores!$C:$C,Synthèse!$B49)","v":0},{"$f":"SUMIFS(Scores!$H:$H,Scores!$B:$B,Synthèse!J$2,Scores!$C:$C,Synthèse!$B49)","v":0},{"$f":"SUMIFS(Scores!$I:$I,Scores!$B:$B,Synthèse!K$2,Scores!$C:$C,Synthèse!$B49)","v":0},{"$f":"SUMIFS(Scores!$H:$H,Scores!$B:$B,Synthèse!L$2,Scores!$C:$C,Synthèse!$B49)","v":0},{"$f":"SUMIFS(Scores!$I:$I,Scores!$B:$B,Synthèse!M$2,Scores!$C:$C,Synthèse!$B49)","v":0},{"$f":"SUMIFS(Scores!$H:$H,Scores!$B:$B,Synthèse!N$2,Scores!$C:$C,Synthèse!$B49)","v":0},{"$f":"SUMIFS(Scores!$I:$I,Scores!$B:$B,Synthèse!O$2,Scores!$C:$C,Synthèse!$B49)","v":0},{"$f":"SUMIFS(Scores!$H:$H,Scores!$B:$B,Synthèse!P$2,Scores!$C:$C,Synthèse!$B49)","v":0},{"$f":"SUMIFS(Scores!$I:$I,Scores!$B:$B,Synthèse!Q$2,Scores!$C:$C,Synthèse!$B49)","v":0}]
[null,"André Malo","H",0,0,{"$f":"SUMIFS(Scores!$H:$H,Scores!$B:$B,Synthèse!F$2,Scores!$C:$C,Synthèse!$B50)","v":0},{"$f":"SUMIFS(Scores!$I:$I,Scores!$B:$B,Synthèse!G$2,Scores!$C:$C,Synthèse!$B50)","v":0},{"$f":"SUMIFS(Scores!$H:$H,Scores!$B:$B,Synthèse!H$2,Scores!$C:$C,Synthèse!$B50)","v":0},{"$f":"SUMIFS(Scores!$I:$I,Scores!$B:$B,Synthèse!I$2,Scores!$C:$C,Synthèse!$B50)","v":0},{"$f":"SUMIFS(Scores!$H:$H,Scores!$B:$B,Synthèse!J$2,Scores!$C:$C,Synthèse!$B50)","v":0},{"$f":"SUMIFS(Scores!$I:$I,Scores!$B:$B,Synthèse!K$2,Scores!$C:$C,Synthèse!$B50)","v":0},{"$f":"SUMIFS(Scores!$H:$H,Scores!$B:$B,Synthèse!L$2,Scores!$C:$C,Synthèse!$B50)","v":0},{"$f":"SUMIFS(Scores!$I:$I,Scores!$B:$B,Synthèse!M$2,Scores!$C:$C,Synthèse!$B50)","v":0},{"$f":"SUMIFS(Scores!$H:$H,Scores!$B:$B,Synthèse!N$2,Scores!$C:$C,Synthèse!$B50)","v":0},{"$f":"SUMIFS(Scores!$I:$I,Scores!$B:$B,Synthèse!O$2,Scores!$C:$C,Synthèse!$B50)","v":0},{"$f":"SUMIFS(Scores!$H:$H,Scores!$B:$B,Synthèse!P$2,Scores!$C:$C,Synthèse!$B50)","v":0},{"$f":"SUMIFS(Scores!$I:$I,Scores!$B:$B,Synthèse!Q$2,Scores!$C:$C,Synthèse!$B50)","v":0}]
[null,"Yvon Sévigny","H",0,0,{"$f":"SUMIFS(Scores!$H:$H,Scores!$B:$B,Synthèse!F$2,Scores!$C:$C,Synthèse!$B51)","v":0},{"$f":"SUMIFS(Scores!$I:$I,Scores!$B:$B,Synthèse!G$2,Scores!$C:$C,Synthèse!$B51)","v":0},{"$f":"SUMIFS(Scores!$H:$H,Scores!$B:$B,Synthèse!H$2,Scores!$C:$C,Synthèse!$B51)","v":0},{"$f":"SUMIFS(Scores!$I:$I,Scores!$B:$B,Synthèse!I$2,Scores!$C:$C,Synthèse!$B51)","v":0},{"$f":"SUMIFS(Scores!$H:$H,Scores!$B:$B,Synthèse!J$2,Scores!$C:$C,Synthèse!$B51)","v":0},{"$f":"SUMIFS(Scores!$I:$I,Scores!$B:$B,Synthèse!K$2,Scores!$C:$C,Synthèse!$B51)","v":0},{"$f":"SUMIFS(Scores!$H:$H,Scores!$B:$B,Synthèse!L$2,Scores!$C:$C,Synthèse!$B51)","v":0},{"$f":"SUMIFS(Scores!$I:$I,Scores!$B:$B,Synthèse!M$2,Scores!$C:$C,Synthèse!$B51)","v":0},{"$f":"SUMIFS(Scores!$H:$H,Scores!$B:$B,Synthèse!N$2,Scores!$C:$C,Synthèse!$B51)","v":0},{"$f":"SUMIFS(Scores!$I:$I,Scores!$B:$B,Synthèse!O$2,Scores!$C:$C,Synthèse!$B51)","v":0},{"$f":"SUMIFS(Scores!$H:$H,Scores!$B:$B,Synthèse!P$2,Scores!$C:$C,Synthèse!$B51)","v":0},{"$f":"SUMIFS(Scores!$I:$I,Scores!$B:$B,Synthèse!Q$2,Scores!$C:$C,Synthèse!$B51)","v":0}]
[null,"Denise Croteau","F",0,0,{"$f":"SUMIFS(Scores!$H:$H,Scores!$B:$B,Synthèse!F$2,Scores!$C:$C,Synthèse!$B52)","v":0},{"$f":"SUMIFS(Scores!$I:$I,Scores!$B:$B,Synthèse!G$2,Scores!$C:$C,Synthèse!$B52)","v":0},{"$f":"SUMIFS(Scores!$H:$H,Scores!$B:$B,Synthèse!H$2,Scores!$C:$C,Synthèse!$B52)","v":0},{"$f":"SUMIFS(Scores!$I:$I,Scores!$B:$B,Synthèse!I$2,Scores!$C:$C,Synthèse!$B52)","v":0},{"$f":"SUMIFS(Scores!$H:$H,Scores!$B:$B,Synthèse!J$2,Scores!$C:$C,Synthèse!$B52)","v":0},{"$f":"SUMIFS(Scores!$I:$I,Scores!$B:$B,Synthèse!K$2,Scores!$C:$C,Synthèse!$B52)","v":0},{"$f":"SUMIFS(Scores!$H:$H,Scores!$B:$B,Synthèse!L$2,Scores!$C:$C,Synthèse!$B52)","v":0},{"$f":"SUMIFS(Scores!$I:$I,Scores!$B:$B,Synthèse!M$2,Scores!$C:$C,Synthèse!$B52)","v":0},{"$f":"SUMIFS(Scores!$H:$H,Scores!$B:$B,Synthèse!N$2,Scores!$C:$C,Synthèse!$B52)","v":0},{"$f":"SUMIFS(Scores!$I:$I,Scores!$B:$B,Synthèse!O$2,Scores!$C:$C,Synthèse!$B52)","v":0},{"$f":"SUMIFS(Scores!$H:$H,Scores!$B:$B,Synthèse!P$2,Scores!$C:$C,Synthèse!$B52)","v":0},{"$f":"SUMIFS(Scores!$I:$I,Scores!$B:$B,Synthèse!Q$2,Scores!$C:$C,Synthèse!$B52)","v":0}]
[null,"Liliane Ouimet","F",0,0,{"$f":"SUMIFS(Scores!$H:$H,Scores!$B:$B,Synthèse!F$2,Scores!$C:$C,Synthèse!$B53)","v":0},{"$f":"SUMIFS(Scores!$I:$I,Scores!$B:$B,Synthèse!G$2,Scores!$C:$C,Synthèse!$B53)","v":0},{"$f":"SUMIFS(Scores!$H:$H,Scores!$B:$B,Synthèse!H$2,Scores!$C:$C,Synthèse!$B53)","v":0},{"$f":"SUMIFS(Scores!$I:$I,Scores!$B:$B,Synthèse!I$2,Scores!$C:$C,Synthèse!$B53)","v":0},{"$f":"SUMIFS(Scores!$H:$H,Scores!$B:$B,Synthèse!J$2,Scores!$C:$C,Synthèse!$B53)","v":0},{"$f":"SUMIFS(Scores!$I:$I,Scores!$B:$B,Synthèse!K$2,Scores!$C:$C,Synthèse!$B53)","v":0},{"$f":"SUMIFS(Scores!$H:$H,Scores!$B:$B,Synthèse!L$2,Scores!$C:$C,Synthèse!$B53)","v":0},{"$f":"SUMIFS(Scores!$I:$I,Scores!$B:$B,Synthèse!M$2,Scores!$C:$C,Synthèse!$B53)","v":0},{"$f":"SUMIFS(Scores!$H:$H,Scores!$B:$B,Synthèse!N$2,Scores!$C:$C,Synthèse!$B53)","v":0},{"$f":"SUMIFS(Scores!$I:$I,Scores!$B:$B,Synthèse!O$2,Scores!$C:$C,Synthèse!$B53)","v":0},{"$f":"SUMIFS(Scores!$H:$H,Scores!$B:$B,Synthèse!P$2,Scores!$C:$C,Synthèse!$B53)","v":0},{"$f":"SUMIFS(Scores!$I:$I,Scores!$B:$B,Synthèse!Q$2,Scores!$C:$C,Synthèse!$B53)","v":0}]
[null,"Serge Pleau","H",0,0,{"$f":"SUMIFS(Scores!$H:$H,Scores!$B:$B,Synthèse!F$2,Scores!$C:$C,Synthèse!$B54)","v":0},{"$f":"SUMIFS(Scores!$I:$I,Scores!$B:$B,Synthèse!G$2,Scores!$C:$C,Synthèse!$B54)","v":0},{"$f":"SUMIFS(Scores!$H:$H,Scores!$B:$B,Synthèse!H$2,Scores!$C:$C,Synthèse!$B54)","v":0},{"$f":"SUMIFS(Scores!$I:$I,Scores!$B:$B,Synthèse!I$2,Scores!$C:$C,Synthèse!$B54)","v":0},{"$f":"SUMIFS(Scores!$H:$H,Scores!$B:$B,Synthèse!J$2,Scores!$C:$C,Synthèse!$B54)","v":0},{"$f":"SUMIFS(Scores!$I:$I,Scores!$B:$B,Synthèse!K$2,Scores!$C:$C,Synthèse!$B54)","v":0},{"$f":"SUMIFS(Scores!$H:$H,Scores!$B:$B,Synthèse!L$2,Scores!$C:$C,Synthèse!$B54)","v":0},{"$f":"SUMIFS(Scores!$I:$I,Scores!$B:$B,Synthèse!M$2,Scores!$C:$C,Synthèse!$B54)","v":0},{"$f":"SUMIFS(Scores!$H:$H,Scores!$B:$B,Synthèse!N$2,Scores!$C:$C,Synthèse!$B54)","v":0},{"$f":"SUMIFS(Scores!$I:$I,Scores!$B:$B,Synthèse!O$2,Scores!$C:$C,Synthèse!$B54)","v":0},{"$f":"SUMIFS(Scores!$H:$H,Scores!$B:$B,Synthèse!P$2,Scores!$C:$C,Synthèse!$B54)","v":0},{"$f":"SUMIFS(Scores!$I:$I,Scores!$B:$B,Synthèse!Q$2,Scores!$C:$C,Synthèse!$B54)","v":0}]
[null,"Monique Boucher","F",0,0,{"$f":"SUMIFS(Scores!$H:$H,Scores!$B:$B,Synthèse!F$2,Scores!$C:$C,Synthèse!$B55)","v":0},{"$f":"SUMIFS(Scores!$I:$I,Scores!$B:$B,Synthèse!G$2,Scores!$C:$C,Synthèse!$B55)","v":0},{"$f":"SUMIFS(Scores!$H:$H,Scores!$B:$B,Synthèse!H$2,Scores!$C:$C,Synthèse!$B55)","v":0},{"$f":"SUMIFS(Scores!$I:$I,Scores!$B:$B,Synthèse!I$2,Scores!$C:$C,Synthèse!$B55)","v":0},{"$f":"SUMIFS(Scores!$H:$H,Scores!$B:$B,Synthèse!J$2,Scores!$C:$C,Synthèse!$B55)","v":0},{"$f":"SUMIFS(Scores!$I:$I,Scores!$B:$B,Synthèse!K$2,Scores!$C:$C,Synthèse!$B55)","v":0},{"$f":"SUMIFS(Scores!$H:$H,Scores!$B:$B,Synthèse!L$2,Scores!$C:$C,Synthèse!$B55)","v":0},{"$f":"SUMIFS(Scores!$I:$I,Scores!$B:$B,Synthèse!M$2,Scores!$C:$C,Synthèse!$B55)","v":0},{"$f":"SUMIFS(Scores!$H:$H,Scores!$B:$B,Synthèse!N$2,Scores!$C:$C,Synthèse!$B55)","v":0},{"$f":"SUMIFS(Scores!$I:$I,Scores!$B:$B,Synthèse!O$2,Scores!$C:$C,Synthèse!$B55)","v":0},{"$f":"SUMIFS(Scores!$H:$H,Scores!$B:$B,Synthèse!P$2,Scores!$C:$C,Synthèse!$B55)","v":0},{"$f":"SUMIFS(Scores!$I:$I,Scores!$B:$B,Synthèse!Q$2,Scores!$C:$C,Synthèse!$B55)","v":0}]
[null,"Richard Choquette","H",0,0,{"$f":"SUMIFS(Scores!$H:$H,Scores!$B:$B,Synthèse!F$2,Scores!$C:$C,Synthèse!$B56)","v":0},{"$f":"SUMIFS(Scores!$I:$I,Scores!$B:$B,Synthèse!G$2,Scores!$C:$C,Synthèse!$B56)","v":0},{"$f":"SUMIFS(Scores!$H:$H,Scores!$B:$B,Synthèse!H$2,Scores!$C:$C,Synthèse!$B56)","v":0},{"$f":"SUMIFS(Scores!$I:$I,Scores!$B:$B,Synthèse!I$2,Scores!$C:$C,Synthèse!$B56)","v":0},{"$f":"SUMIFS(Scores!$H:$H,Scores!$B:$B,Synthèse!J$2,Scores!$C:$C,Synthèse!$B56)","v":0},{"$f":"SUMIFS(Scores!$I:$I,Scores!$B:$B,Synthèse!K$2,Scores!$C:$C,Synthèse!$B56)","v":0},{"$f":"SUMIFS(Scores!$H:$H,Scores!$B:$B,Synthèse!L$2,Scores!$C:$C,Synthèse!$B56)","v":0},{"$f":"SUMIFS(Scores!$I:$I,Scores!$B:$B,Synthèse!M$2,Scores!$C:$C,Synthèse!$B56)","v":0},{"$f":"SUMIFS(Scores!$H:$H,Scores!$B:$B,Synthèse!N$2,Scores!$C:$C,Synthèse!$B56)","v":0},{"$f":"SUMIFS(Scores!$I:$I,Scores!$B:$B,Synthèse!O$2,Scores!$C:$C,Synthèse!$B56)","v":0},{"$f":"SUMIFS(Scores!$H:$H,Scores!$B:$B,Synthèse!P$2,Scores!$C:$C,Synthèse!$B56)","v":0},{"$f":"SUMIFS(Scores!$I:$I,Scores!$B:$B,Synthèse!Q$2,Scores!$C:$C,Synthèse!$B56)","v":0}]
[null,"Réjean Forget","H",0,0,{"$f":"SUMIFS(Scores!$H:$H,Scores!$B:$B,Synthèse!F$2,Scores!$C:$C,Synthèse!$B57)","v":0},{"$f":"SUMIFS(Scores!$I:$I,Scores!$B:$B,Synthèse!G$2,Scores!$C:$C,Synthèse!$B57)","v":0},{"$f":"SUMIFS(Scores!$H:$H,Scores!$B:$B,Synthèse!H$2,Scores!$C:$C,Synthèse!$B57)","v":0},{"$f":"SUMIFS(Scores!$I:$I,Scores!$B:$B,Synthèse!I$2,Scores!$C:$C,Synthèse!$B57)","v":0},{"$f":"SUMIFS(Scores!$H:$H,Scores!$B:$B,Synthèse!J$2,Scores!$C:$C,Synthèse!$B57)","v":0},{"$f":"SUMIFS(Scores!$I:$I,Scores!$B:$B,Synthèse!K$2,Scores!$C:$C,Synthèse!$B57)","v":0},{"$f":"SUMIFS(Scores!$H:$H,Scores!$B:$B,Synthèse!L$2,Scores!$C:$C,Synthèse!$B57)","v":0},{"$f":"SUMIFS(Scores!$I:$I,Scores!$B:$B,Synthèse!M$2,Scores!$C:$C,Synthèse!$B57)","v":0},{"$f":"SUMIFS(Scores!$H:$H,Scores!$B:$B,Synthèse!N$2,Scores!$C:$C,Synthèse!$B57)","v":0},{"$f":"SUMIFS(Scores!$I:$I,Scores!$B:$B,Synthèse!O$2,Scores!$C:$C,Synthèse!$B57)","v":0},{"$f":"SUMIFS(Scores!$H:$H,Scores!$B:$B,Synthèse!P$2,Scores!$C:$C,Synthèse!$B57)","v":0},{"$f":"SUMIFS(Scores!$I:$I,Scores!$B:$B,Synthèse!Q$2,Scores!$C:$C,Synthèse!$B57)","v":0}]
[null,"Mimi Pearson","F",0,0,{"$f":"SUMIFS(Scores!$H:$H,Scores!$B:$B,Synthèse!F$2,Scores!$C:$C,Synthèse!$B58)","v":0},{"$f":"SUMIFS(Scores!$I:$I,Scores!$B:$B,Synthèse!G$2,Scores!$C:$C,Synthèse!$B58)","v":0},{"$f":"SUMIFS(Scores!$H:$H,Scores!$B:$B,Synthèse!H$2,Scores!$C:$C,Synthèse!$B58)","v":0},{"$f":"SUMIFS(Scores!$I:$I,Scores!$B:$B,Synthèse!I$2,Scores!$C:$C,Synthèse!$B58)","v":0},{"$f":"SUMIFS(Scores!$H:$H,Scores!$B:$B,Synthèse!J$2,Scores!$C:$C,Synthèse!$B58)","v":0},{"$f":"SUMIFS(Scores!$I:$I,Scores!$B:$B,Synthèse!K$2,Scores!$C:$C,Synthèse!$B58)","v":0},{"$f":"SUMIFS(Scores!$H:$H,Scores!$B:$B,Synthèse!L$2,Scores!$C:$C,Synthèse!$B58)","v":0},{"$f":"SUMIFS(Scores!$I:$I,Scores!$B:$B,Synthèse!M$2,Scores!$C:$C,Synthèse!$B58)","v":0},{"$f":"SUMIFS(Scores!$H:$H,Scores!$B:$B,Synthèse!N$2,Scores!$C:$C,Synthèse!$B58)","v":0},{"$f":"SUMIFS(Scores!$I:$I,Scores!$B:$B,Synthèse!O$2,Scores!$C:$C,Synthèse!$B58)","v":0},{"$f":"SUMIFS(Scores!$H:$H,Scores!$B:$B,Synthèse!P$2,Scores!$C:$C,Synthèse!$B58)","v":0},{"$f":"SUMIFS(Scores!$I:$I,Scores!$B:$B,Synthèse!Q$2,Scores!$C:$C,Synthèse!$B58)","v":0}]
[null,"Lisette Paquin","F",0,0,{"$f":"SUMIFS(Scores!$H:$H,Scores!$B:$B,Synthèse!F$2,Scores!$C:$C,Synthèse!$B59)","v":0},{"$f":"SUMIFS(Scores!$I:$I,Scores!$B:$B,Synthèse!G$2,Scores!$C:$C,Synthèse!$B59)","v":0},{"$f":"SUMIFS(Scores!$H:$H,Scores!$B:$B,Synthèse!H$2,Scores!$C:$C,Synthèse!$B59)","v":0},{"$f":"SUMIFS(Scores!$I:$I,Scores!$B:$B,Synthèse!I$2,Scores!$C:$C,Synthèse!$B59)","v":0},{"$f":"SUMIFS(Scores!$H:$H,Scores!$B:$B,Synthèse!J$2,Scores!$C:$C,Synthèse!$B59)","v":0},{"$f":"SUMIFS(Scores!$I:$I,Scores!$B:$B,Synthèse!K$2,Scores!$C:$C,Synthèse!$B59)","v":0},{"$f":"SUMIFS(Scores!$H:$H,Scores!$B:$B,Synthèse!L$2,Scores!$C:$C,Synthèse!$B59)","v":0},{"$f":"SUMIFS(Scores!$I:$I,Scores!$B:$B,Synthèse!M$2,Scores!$C:$C,Synthèse!$B59)","v":0},{"$f":"SUMIFS(Scores!$H:$H,Scores!$B:$B,Synthèse!N$2,Scores!$C:$C,Synthèse!$B59)","v":0},{"$f":"SUMIFS(Scores!$I:$I,Scores!$B:$B,Synthèse!O$2,Scores!$C:$C,Synthèse!$B59)","v":0},{"$f":"SUMIFS(Scores!$H:$H,Scores!$B:$B,Synthèse!P$2,Scores!$C:$C,Synthèse!$B59)","v":0},{"$f":"SUMIFS(Scores!$I:$I,Scores!$B:$B,Synthèse!Q$2,Scores!$C:$C,Synthèse!$B59)","v":0}]
[null,"Delphis Ouellet","H",0,0,{"$f":"SUMIFS(Scores!$H:$H,Scores!$B:$B,Synthèse!F$2,Scores!$C:$C,Synthèse!$B60)","v":0},{"$f":"SUMIFS(Scores!$I:$I,Scores!$B:$B,Synthèse!G$2,Scores!$C:$C,Synthèse!$B60)","v":0},{"$f":"SUMIFS(Scores!$H:$H,Scores!$B:$B,Synthèse!H$2,Scores!$C:$C,Synthèse!$B60)","v":0},{"$f":"SUMIFS(Scores!$I:$I,Scores!$B:$B,Synthèse!I$2,Scores!$C:$C,Synthèse!$B60)","v":0},{"$f":"SUMIFS(Scores!$H:$H,Scores!$B:$B,Synthèse!J$2,Scores!$C:$C,Synthèse!$B60)","v":0},{"$f":"SUMIFS(Scores!$I:$I,Scores!$B:$B,Synthèse!K$2,Scores!$C:$C,Synthèse!$B60)","v":0},{"$f":"SUMIFS(Scores!$H:$H,Scores!$B:$B,Synthèse!L$2,Scores!$C:$C,Synthèse!$B60)","v":0},{"$f":"SUMIFS(Scores!$I:$I,Scores!$B:$B,Synthèse!M$2,Scores!$C:$C,Synthèse!$B60)","v":0},{"$f":"SUMIFS(Scores!$H:$H,Scores!$B:$B,Synthèse!N$2,Scores!$C:$C,Synthèse!$B60)","v":0},{"$f":"SUMIFS(Scores!$I:$I,Scores!$B:$B,Synthèse!O$2,Scores!$C:$C,Synthèse!$B60)","v":0},{"$f":"SUMIFS(Scores!$H:$H,Scores!$B:$B,Synthèse!P$2,Scores!$C:$C,Synthèse!$B60)","v":0},{"$f":"SUMIFS(Scores!$I:$I,Scores!$B:$B,Synthèse!Q$2,Scores!$C:$C,Synthèse!$B60)","v":0}]
[null,"Gilles Dusseault","H",0,0,{"$f":"SUMIFS(Scores!$H:$H,Scores!$B:$B,Synthèse!F$2,Scores!$C:$C,Synthèse!$B61)","v":0},{"$f":"SUMIFS(Scores!$I:$I,Scores!$B:$B,Synthèse!G$2,Scores!$C:$C,Synthèse!$B61)","v":0},{"$f":"SUMIFS(Scores!$H:$H,Scores!$B:$B,Synthèse!H$2,Scores!$C:$C,Synthèse!$B61)","v":0},{"$f":"SUMIFS(Scores!$I:$I,Scores!$B:$B,Synthèse!I$2,Scores!$C:$C,Synthèse!$B61)","v":0},{"$f":"SUMIFS(Scores!$H:$H,Scores!$B:$B,Synthèse!J$2,Scores!$C:$C,Synthèse!$B61)","v":0},{"$f":"SUMIFS(Scores!$I:$I,Scores!$B:$B,Synthèse!K$2,Scores!$C:$C,Synthèse!$B61)","v":0},{"$f":"SUMIFS(Scores!$H:$H,Scores!$B:$B,Synthèse!L$2,Scores!$C:$C,Synthèse!$B61)","v":0},{"$f":"SUMIFS(Scores!$I:$I,Scores!$B:$B,Synthèse!M$2,Scores!$C:$C,Synthèse!$B61)","v":0},{"$f":"SUMIFS(Scores!$H:$H,Scores!$B:$B,Synthèse!N$2,Scores!$C:$C,Synthèse!$B61)","v":0},{"$f":"SUMIFS(Scores!$I:$I,Scores!$B:$B,Synthèse!O$2,Scores!$C:$C,Synthèse!$B61)","v":0},{"$f":"SUMIFS(Scores!$H:$H,Scores!$B:$B,Synthèse!P$2,Scores!$C:$C,Synthèse!$B61)","v":0},{"$f":"SUMIFS(Scores!$I:$I,Scores!$B:$B,Synthèse!Q$2,Scores!$C:$C,Synthèse!$B61)","v":0}]
[null,"Claude Boucher","H",0,0,{"$f":"SUMIFS(Scores!$H:$H,Scores!$B:$B,Synthèse!F$2,Scores!$C:$C,Synthèse!$B62)","v":0},{"$f":"SUMIFS(Scores!$I:$I,Scores!$B:$B,Synthèse!G$2,Scores!$C:$C,Synthèse!$B62)","v":0},{"$f":"SUMIFS(Scores!$H:$H,Scores!$B:$B,Synthèse!H$2,Scores!$C:$C,Synthèse!$B62)","v":0},{"$f":"SUMIFS(Scores!$I:$I,Scores!$B:$B,Synthèse!I$2,Scores!$C:$C,Synthèse!$B62)","v":0},{"$f":"SUMIFS(Scores!$H:$H,Scores!$B:$B,Synthèse!J$2,Scores!$C:$C,Synthèse!$B62)","v":0},{"$f":"SUMIFS(Scores!$I:$I,Scores!$B:$B,Synthèse!K$2,Scores!$C:$C,Synthèse!$B62)","v":0},{"$f":"SUMIFS(Scores!$H:$H,Scores!$B:$B,Synthèse!L$2,Scores!$C:$C,Synthèse!$B62)","v":0},{"$f":"SUMIFS(Scores!$I:$I,Scores!$B:$B,Synthèse!M$2,Scores!$C:$C,Synthèse!$B62)","v":0},{"$f":"SUMIFS(Scores!$H:$H,Scores!$B:$B,Synthèse!N$2,Scores!$C:$C,Synthèse!$B62)","v":0},{"$f":"SUMIFS(Scores!$I:$I,Scores!$B:$B,Synthèse!O$2,Scores!$C:$C,Synthèse!$B62)","v":0},{"$f":"SUMIFS(Scores!$H:$H,Scores!$B:$B,Synthèse!P$2,Scores!$C:$C,Synthèse!$B62)","v":0},{"$f":"SUMIFS(Scores!$I:$I,Scores!$B:$B,Synthèse!Q$2,Scores!$C:$C,Synthèse!$B62)","v":0}]
[null,"Gilles Briand","H",0,0,{"$f":"SUMIFS(Scores!$H:$H,Scores!$B:$B,Synthèse!F$2,Scores!$C:$C,Synthèse!$B63)","v":0},{"$f":"SUMIFS(Scores!$I:$I,Scores!$B:$B,Synthèse!G$2,Scores!$C:$C,Synthèse!$B63)","v":0},{"$f":"SUMIFS(Scores!$H:$H,Scores!$B:$B,Synthèse!H$2,Scores!$C:$C,Synthèse!$B63)","v":0},{"$f":"SUMIFS(Scores!$I:$I,Scores!$B:$B,Synthèse!I$2,Scores!$C:$C,Synthèse!$B63)","v":0},{"$f":"SUMIFS(Scores!$H:$H,Scores!$B:$B,Synthèse!J$2,Scores!$C:$C,Synthèse!$B63)","v":0},{"$f":"SUMIFS(Scores!$I:$I,Scores!$B:$B,Synthèse!K$2,Scores!$C:$C,Synthèse!$B63)","v":0},{"$f":"SUMIFS(Scores!$H:$H,Scores!$B:$B,Synthèse!L$2,Scores!$C:$C,Synthèse!$B63)","v":0},{"$f":"SUMIFS(Scores!$I:$I,Scores!$B:$B,Synthèse!M$2,Scores!$C:$C,Synthèse!$B63)","v":0},{"$f":"SUMIFS(Scores!$H:$H,Scores!$B:$B,Synthèse!N$2,Scores!$C:$C,Synthèse!$B63)","v":0},{"$f":"SUMIFS(Scores!$I:$I,Scores!$B:$B,Synthèse!O$2,Scores!$C:$C,Synthèse!$B63)","v":0},{"$f":"SUMIFS(Scores!$H:$H,Scores!$B:$B,Synthèse!P$2,Scores!$C:$C,Synthèse!$B63)","v":0},{"$f":"SUMIFS(Scores!$I:$I,Scores!$B:$B,Synthèse!Q$2,Scores!$C:$C,Synthèse!$B63)","v":0}]
[null,"Agathe Gauthier","F",0,0,{"$f":"SUMIFS(Scores!$H:$H,Scores!$B:$B,Synthèse!F$2,Scores!$C:$C,Synthèse!$B64)","v":0},{"$f":"SUMIFS(Scores!$I:$I,Scores!$B:$B,Synthèse!G$2,Scores!$C:$C,Synthèse!$B64)","v":0},{"$f":"SUMIFS(Scores!$H:$H,Scores!$B:$B,Synthèse!H$2,Scores!$C:$C,Synthèse!$B64)","v":0},{"$f":"SUMIFS(Scores!$I:$I,Scores!$B:$B,Synthèse!I$2,Scores!$C:$C,Synthèse!$B64)","v":0},{"$f":"SUMIFS(Scores!$H:$H,Scores!$B:$B,Synthèse!J$2,Scores!$C:$C,Synthèse!$B64)","v":0},{"$f":"SUMIFS(Scores!$I:$I,Scores!$B:$B,Synthèse!K$2,Scores!$C:$C,Synthèse!$B64)","v":0},{"$f":"SUMIFS(Scores!$H:$H,Scores!$B:$B,Synthèse!L$2,Scores!$C:$C,Synthèse!$B64)","v":0},{"$f":"SUMIFS(Scores!$I:$I,Scores!$B:$B,Synthèse!M$2,Scores!$C:$C,Synthèse!$B64)","v":0},{"$f":"SUMIFS(Scores!$H:$H,Scores!$B:$B,Synthèse!N$2,Scores!$C:$C,Synthèse!$B64)","v":0},{"$f":"SUMIFS(Scores!$I:$I,Scores!$B:$B,Synthèse!O$2,Scores!$C:$C,Synthèse!$B64)","v":0},{"$f":"SUMIFS(Scores!$H:$H,Scores!$B:$B,Synthèse!P$2,Scores!$C:$C,Synthèse!$B64)","v":0},{"$f":"SUMIFS(Scores!$I:$I,Scores!$B:$B,Synthèse!Q$2,Scores!$C:$C,Synthèse!$B64)","v":0}]
[null,"Nicole Deslauriers","F",0,0,{"$f":"SUMIFS(Scores!$H:$H,Scores!$B:$B,Synthèse!F$2,Scores!$C:$C,Synthèse!$B65)","v":0},{"$f":"SUMIFS(Scores!$I:$I,Scores!$B:$B,Synthèse!G$2,Scores!$C:$C,Synthèse!$B65)","v":0},{"$f":"SUMIFS(Scores!$H:$H,Scores!$B:$B,Synthèse!H$2,Scores!$C:$C,Synthèse!$B65)","v":0},{"$f":"SUMIFS(Scores!$I:$I,Scores!$B:$B,Synthèse!I$2,Scores!$C:$C,Synthèse!$B65)","v":0},{"$f":"SUMIFS(Scores!$H:$H,Scores!$B:$B,Synthèse!J$2,Scores!$C:$C,Synthèse!$B65)","v":0},{"$f":"SUMIFS(Scores!$I:$I,Scores!$B:$B,Synthèse!K$2,Scores!$C:$C,Synthèse!$B65)","v":0},{"$f":"SUMIFS(Scores!$H:$H,Scores!$B:$B,Synthèse!L$2,Scores!$C:$C,Synthèse!$B65)","v":0},{"$f":"SUMIFS(Scores!$I:$I,Scores!$B:$B,Synthèse!M$2,Scores!$C:$C,Synthèse!$B65)","v":0},{"$f":"SUMIFS(Scores!$H:$H,Scores!$B:$B,Synthèse!N$2,Scores!$C:$C,Synthèse!$B65)","v":0},{"$f":"SUMIFS(Scores!$I:$I,Scores!$B:$B,Synthèse!O$2,Scores!$C:$C,Synthèse!$B65)","v":0},{"$f":"SUMIFS(Scores!$H:$H,Scores!$B:$B,Synthèse!P$2,Scores!$C:$C,Synthèse!$B65)","v":0},{"$f":"SUMIFS(Scores!$I:$I,Scores!$B:$B,Synthèse!Q$2,Scores!$C:$C,Synthèse!$B65)","v":0}]
[null,"Réjeanne O'Sullivan","F",0,0,{"$f":"SUMIFS(Scores!$H:$H,Scores!$B:$B,Synthèse!F$2,Scores!$C:$C,Synthèse!$B66)","v":0},{"$f":"SUMIFS(Scores!$I:$I,Scores!$B:$B,Synthèse!G$2,Scores!$C:$C,Synthèse!$B66)","v":0},{"$f":"SUMIFS(Scores!$H:$H,Scores!$B:$B,Synthèse!H$2,Scores!$C:$C,Synthèse!$B66)","v":0},{"$f":"SUMIFS(Scores!$I:$I,Scores!$B:$B,Synthèse!I$2,Scores!$C:$C,Synthèse!$B66)","v":0},{"$f":"SUMIFS(Scores!$H:$H,Scores!$B:$B,Synthèse!J$2,Scores!$C:$C,Synthèse!$B66)","v":0},{"$f":"SUMIFS(Scores!$I:$I,Scores!$B:$B,Synthèse!K$2,Scores!$C:$C,Synthèse!$B66)","v":0},{"$f":"SUMIFS(Scores!$H:$H,Scores!$B:$B,Synthèse!L$2,Scores!$C:$C,Synthèse!$B66)","v":0},{"$f":"SUMIFS(Scores!$I:$I,Scores!$B:$B,Synthèse!M$2,Scores!$C:$C,Synthèse!$B66)","v":0},{"$f":"SUMIFS(Scores!$H:$H,Scores!$B:$B,Synthèse!N$2,Scores!$C:$C,Synthèse!$B66)","v":0},{"$f":"SUMIFS(Scores!$I:$I,Scores!$B:$B,Synthèse!O$2,Scores!$C:$C,Synthèse!$B66)","v":0},{"$f":"SUMIFS(Scores!$H:$H,Scores!$B:$B,Synthèse!P$2,Scores!$C:$C,Synthèse!$B66)","v":0},{"$f":"SUMIFS(Scores!$I:$I,Scores!$B:$B,Synthèse!Q$2,Scores!$C:$C,Synthèse!$B66)","v":0}]
[null,"André Giroux","H",0,0,{"$f":"SUMIFS(Scores!$H:$H,Scores!$B:$B,Synthèse!F$2,Scores!$C:$C,Synthèse!$B67)","v":0},{"$f":"SUMIFS(Scores!$I:$I,Scores!$B:$B,Synthèse!G$2,Scores!$C:$C,Synthèse!$B67)","v":0},{"$f":"SUMIFS(Scores!$H:$H,Scores!$B:$B,Synthèse!H$2,Scores!$C:$C,Synthèse!$B67)","v":0},{"$f":"SUMIFS(Scores!$I:$I,Scores!$B:$B,Synthèse!I$2,Scores!$C:$C,Synthèse!$B67)","v":0},{"$f":"SUMIFS(Scores!$H:$H,Scores!$B:$B,Synthèse!J$2,Scores!$C:$C,Synthèse!$B67)","v":0},{"$f":"SUMIFS(Scores!$I:$I,Scores!$B:$B,Synthèse!K$2,Scores!$C:$C,Synthèse!$B67)","v":0},{"$f":"SUMIFS(Scores!$H:$H,Scores!$B:$B,Synthèse!L$2,Scores!$C:$C,Synthèse!$B67)","v":0},{"$f":"SUMIFS(Scores!$I:$I,Scores!$B:$B,Synthèse!M$2,Scores!$C:$C,Synthèse!$B67)","v":0},{"$f":"SUMIFS(Scores!$H:$H,Scores!$B:$B,Synthèse!N$2,Scores!$C:$C,Synthèse!$B67)","v":0},{"$f":"SUMIFS(Scores!$I:$I,Scores!$B:$B,Synthèse!O$2,Scores!$C:$C,Synthèse!$B67)","v":0},{"$f":"SUMIFS(Scores!$H:$H,Scores!$B:$B,Synthèse!P$2,Scores!$C:$C,Synthèse!$B67)","v":0},{"$f":"SUMIFS(Scores!$I:$I,Scores!$B:$B,Synthèse!Q$2,Scores!$C:$C,Synthèse!$B67)","v":0}]
[null,"Geatan Martin","H",0,0,{"$f":"SUMIFS(Scores!$H:$H,Scores!$B:$B,Synthèse!F$2,Scores!$C:$C,Synthèse!$B68)","v":0},{"$f":"SUMIFS(Scores!$I:$I,Scores!$B:$B,Synthèse!G$2,Scores!$C:$C,Synthèse!$B68)","v":0},{"$f":"SUMIFS(Scores!$H:$H,Scores!$B:$B,Synthèse!H$2,Scores!$C:$C,Synthèse!$B68)","v":0},{"$f":"SUMIFS(Scores!$I:$I,Scores!$B:$B,Synthèse!I$2,Scores!$C:$C,Synthèse!$B68)","v":0},{"$f":"SUMIFS(Scores!$H:$H,Scores!$B:$B,Synthèse!J$2,Scores!$C:$C,Synthèse!$B68)","v":0},{"$f":"SUMIFS(Scores!$I:$I,Scores!$B:$B,Synthèse!K$2,Scores!$C:$C,Synthèse!$B68)","v":0},{"$f":"SUMIFS(Scores!$H:$H,Scores!$B:$B,Synthèse!L$2,Scores!$C:$C,Synthèse!$B68)","v":0},{"$f":"SUMIFS(Scores!$I:$I,Scores!$B:$B,Synthèse!M$2,Scores!$C:$C,Synthèse!$B68)","v":0},{"$f":"SUMIFS(Scores!$H:$H,Scores!$B:$B,Synthèse!N$2,Scores!$C:$C,Synthèse!$B68)","v":0},{"$f":"SUMIFS(Scores!$I:$I,Scores!$B:$B,Synthèse!O$2,Scores!$C:$C,Synthèse!$B68)","v":0},{"$f":"SUMIFS(Scores!$H:$H,Scores!$B:$B,Synthèse!P$2,Scores!$C:$C,Synthèse!$B68)","v":0},{"$f":"SUMIFS(Scores!$I:$I,Scores!$B:$B,Synthèse!Q$2,Scores!$C:$C,Synthèse!$B68)","v":0}]
[null,"Bernard Chouinard","H",{"$f":"MAX(F69,H69,J69,L69,N69,P69)","v":0},{"$f":"MAX(G69,I69,K69,M69,O69,Q69)","v":0},{"$f":"SUMIFS(Scores!$H:$H,Scores!$B:$B,Synthèse!F$2,Scores!$C:$C,Synthèse!$B69)","v":0},{"$f":"SUMIFS(Scores!$I:$I,Scores!$B:$B,Synthèse!G$2,Scores!$C:$C,Synthèse!$B69)","v":0},{"$f":"SUMIFS(Scores!$H:$H,Scores!$B:$B,Synthèse!H$2,Scores!$C:$C,Synthèse!$B69)","v":0},{"$f":"SUMIFS(Scores!$I:$I,Scores!$B:$B,Synthèse!I$2,Scores!$C:$C,Synthèse!$B69)","v":0},{"$f":"SUMIFS(Scores!$H:$H,Scores!$B:$B,Synthèse!J$2,Scores!$C:$C,Synthèse!$B69)","v":0},{"$f":"SUMIFS(Scores!$I:$I,Scores!$B:$B,Synthèse!K$2,Scores!$C:$C,Synthèse!$B69)","v":0},{"$f":"SUMIFS(Scores!$H:$H,Scores!$B:$B,Synthèse!L$2,Scores!$C:$C,Synthèse!$B69)","v":0},{"$f":"SUMIFS(Scores!$I:$I,Scores!$B:$B,Synthèse!M$2,Scores!$C:$C,Synthèse!$B69)","v":0},{"$f":"SUMIFS(Scores!$H:$H,Scores!$B:$B,Synthèse!N$2,Scores!$C:$C,Synthèse!$B69)","v":0},{"$f":"SUMIFS(Scores!$I:$I,Scores!$B:$B,Synthèse!O$2,Scores!$C:$C,Synthèse!$B69)","v":0},{"$f":"SUMIFS(Scores!$H:$H,Scores!$B:$B,Synthèse!P$2,Scores!$C:$C,Synthèse!$B69)","v":0},{"$f":"SUMIFS(Scores!$I:$I,Scores!$B:$B,Synthèse!Q$2,Scores!$C:$C,Synthèse!$B69)","v":0}]
[null,"Francine Pleau","F",0,0,{"$f":"SUMIFS(Scores!$H:$H,Scores!$B:$B,Synthèse!F$2,Scores!$C:$C,Synthèse!$B70)","v":0},{"$f":"SUMIFS(Scores!$I:$I,Scores!$B:$B,Synthèse!G$2,Scores!$C:$C,Synthèse!$B70)","v":0},{"$f":"SUMIFS(Scores!$H:$H,Scores!$B:$B,Synthèse!H$2,Scores!$C:$C,Synthèse!$B70)","v":0},{"$f":"SUMIFS(Scores!$I:$I,Scores!$B:$B,Synthèse!I$2,Scores!$C:$C,Synthèse!$B70)","v":0},{"$f":"SUMIFS(Scores!$H:$H,Scores!$B:$B,Synthèse!J$2,Scores!$C:$C,Synthèse!$B70)","v":0},{"$f":"SUMIFS(Scores!$I:$I,Scores!$B:$B,Synthèse!K$2,Scores!$C:$C,Synthèse!$B70)","v":0},{"$f":"SUMIFS(Scores!$H:$H,Scores!$B:$B,Synthèse!L$2,Scores!$C:$C,Synthèse!$B70)","v":0},{"$f":"SUMIFS(Scores!$I:$I,Scores!$B:$B,Synthèse!M$2,Scores!$C:$C,Synthèse!$B70)","v":0},{"$f":"SUMIFS(Scores!$H:$H,Scores!$B:$B,Synthèse!N$2,Scores!$C:$C,Synthèse!$B70)","v":0},{"$f":"SUMIFS(Scores!$I:$I,Scores!$B:$B,Synthèse!O$2,Scores!$C:$C,Synthèse!$B70)","v":0},{"$f":"SUMIFS(Scores!$H:$H,Scores!$B:$B,Synthèse!P$2,Scores!$C:$C,Synthèse!$B70)","v":0},{"$f":"SUMIFS(Scores!$I:$I,Scores!$B:$B,Synthèse!Q$2,Scores!$C:$C,Synthèse!$B70)","v":0}]
[null,"Jean-Claude Gélinas","F",0,0,{"$f":"SUMIFS(Scores!$H:$H,Scores!$B:$B,Synthèse!F$2,Scores!$C:$C,Synthèse!$B71)","v":0},{"$f":"SUMIFS(Scores!$I:$I,Scores!$B:$B,Synthèse!G$2,Scores!$C:$C,Synthèse!$B71)","v":0},{"$f":"SUMIFS(Scores!$H:$H,Scores!$B:$B,Synthèse!H$2,Scores!$C:$C,Synthèse!$B71)","v":0},{"$f":"SUMIFS(Scores!$I:$I,Scores!$B:$B,Synthèse!I$2,Scores!$C:$C,Synthèse!$B71)","v":0},{"$f":"SUMIFS(Scores!$H:$H,Scores!$B:$B,Synthèse!J$2,Scores!$C:$C,Synthèse!$B71)","v":0},{"$f":"SUMIFS(Scores!$I:$I,Scores!$B:$B,Synthèse!K$2,Scores!$C:$C,Synthèse!$B71)","v":0},{"$f":"SUMIFS(Scores!$H:$H,Scores!$B:$B,Synthèse!L$2,Scores!$C:$C,Synthèse!$B71)","v":0},{"$f":"SUMIFS(Scores!$I:$I,Scores!$B:$B,Synthèse!M$2,Scores!$C:$C,Synthèse!$B71)","v":0},{"$f":"SUMIFS(Scores!$H:$H,Scores!$B:$B,Synthèse!N$2,Scores!$C:$C,Synthèse!$B71)","v":0},{"$f":"SUMIFS(Scores!$I:$I,Scores!$B:$B,Synthèse!O$2,Scores!$C:$C,Synthèse!$B71)","v":0},{"$f":"SUMIFS(Scores!$H:$H,Scores!$B:$B,Synthèse!P$2,Scores!$C:$C,Synthèse!$B71)","v":0},{"$f":"SUMIFS(Scores!$I:$I,Scores!$B:$B,Synthèse!Q$2,Scores!$C:$C,Synthèse!$B71)","v":0}]
[null,"Francine Desjardins","F",0,0,{"$f":"SUMIFS(Scores!$H:$H,Scores!$B:$B,Synthèse!F$2,Scores!$C:$C,Synthèse!$B72)","v":0},{"$f":"SUMIFS(Scores!$I:$I,Scores!$B:$B,Synthèse!G$2,Scores!$C:$C,Synthèse!$B72)","v":0},{"$f":"SUMIFS(Scores!$H:$H,Scores!$B:$B,Synthèse!H$2,Scores!$C:$C,Synthèse!$B72)","v":0},{"$f":"SUMIFS(Scores!$I:$I,Scores!$B:$B,Synthèse!I$2,Scores!$C:$C,Synthèse!$B72)","v":0},{"$f":"SUMIFS(Scores!$H:$H,Scores!$B:$B,Synthèse!J$2,Scores!$C:$C,Synthèse!$B72)","v":0},{"$f":"SUMIFS(Scores!$I:$I,Scores!$B:$B,Synthèse!K$2,Scores!$C:$C,Synthèse!$B72)","v":0},{"$f":"SUMIFS(Scores!$H:$H,Scores!$B:$B,Synthèse!L$2,Scores!$C:$C,Synthèse!$B72)","v":0},{"$f":"SUMIFS(Scores!$I:$I,Scores!$B:$B,Synthèse!M$2,Scores!$C:$C,Synthèse!$B72)","v":0},{"$f":"SUMIFS(Scores!$H:$H,Scores!$B:$B,Synthèse!N$2,Scores!$C:$C,Synthèse!$B72)","v":0},{"$f":"SUMIFS(Scores!$I:$I,Scores!$B:$B,Synthèse!O$2,Scores!$C:$C,Synthèse!$B72)","v":0},{"$f":"SUMIFS(Scores!$H:$H,Scores!$B:$B,Synthèse!P$2,Scores!$C:$C,Synthèse!$B72)","v":0},{"$f":"SUMIFS(Scores!$I:$I,Scores!$B:$B,Synthèse!Q$2,Scores!$C:$C,Synthèse!$B72)","v":0}]
[null,"Francine Legeault","H",0,0,{"$f":"SUMIFS(Scores!$H:$H,Scores!$B:$B,Synthèse!F$2,Scores!$C:$C,Synthèse!$B73)","v":0},{"$f":"SUMIFS(Scores!$I:$I,Scores!$B:$B,Synthèse!G$2,Scores!$C:$C,Synthèse!$B73)","v":0},{"$f":"SUMIFS(Scores!$H:$H,Scores!$B:$B,Synthèse!H$2,Scores!$C:$C,Synthèse!$B73)","v":0},{"$f":"SUMIFS(Scores!$I:$I,Scores!$B:$B,Synthèse!I$2,Scores!$C:$C,Synthèse!$B73)","v":0},{"$f":"SUMIFS(Scores!$H:$H,Scores!$B:$B,Synthèse!J$2,Scores!$C:$C,Synthèse!$B73)","v":0},{"$f":"SUMIFS(Scores!$I:$I,Scores!$B:$B,Synthèse!K$2,Scores!$C:$C,Synthèse!$B73)","v":0},{"$f":"SUMIFS(Scores!$H:$H,Scores!$B:$B,Synthèse!L$2,Scores!$C:$C,Synthèse!$B73)","v":0},{"$f":"SUMIFS(Scores!$I:$I,Scores!$B:$B,Synthèse!M$2,Scores!$C:$C,Synthèse!$B73)","v":0},{"$f":"SUMIFS(Scores!$H:$H,Scores!$B:$B,Synthèse!N$2,Scores!$C:$C,Synthèse!$B73)","v":0},{"$f":"SUMIFS(Scores!$I:$I,Scores!$B:$B,Synthèse!O$2,Scores!$C:$C,Synthèse!$B73)","v":0},{"$f":"SUMIFS(Scores!$H:$H,Scores!$B:$B,Synthèse!P$2,Scores!$C:$C,Synthèse!$B73)","v":0},{"$f":"SUMIFS(Scores!$I:$I,Scores!$B:$B,Synthèse!Q$2,Scores!$C:$C,Synthèse!$B73)","v":0}]
[null,"Gerald Pearson","H",0,0,{"$f":"SUMIFS(Scores!$H:$H,Scores!$B:$B,Synthèse!F$2,Scores!$C:$C,Synthèse!$B74)","v":0},{"$f":"SUMIFS(Scores!$I:$I,Scores!$B:$B,Synthèse!G$2,Scores!$C:$C,Synthèse!$B74)","v":0},{"$f":"SUMIFS(Scores!$H:$H,Scores!$B:$B,Synthèse!H$2,Scores!$C:$C,Synthèse!$B74)","v":0},{"$f":"SUMIFS(Scores!$I:$I,Scores!$B:$B,Synthèse!I$2,Scores!$C:$C,Synthèse!$B74)","v":0},{"$f":"SUMIFS(Scores!$H:$H,Scores!$B:$B,Synthèse!J$2,Scores!$C:$C,Synthèse!$B74)","v":0},{"$f":"SUMIFS(Scores!$I:$I,Scores!$B:$B,Synthèse!K$2,Scores!$C:$C,Synthèse!$B74)","v":0},{"$f":"SUMIFS(Scores!$H:$H,Scores!$B:$B,Synthèse!L$2,Scores!$C:$C,Synthèse!$B74)","v":0},{"$f":"SUMIFS(Scores!$I:$I,Scores!$B:$B,Synthèse!M$2,Scores!$C:$C,Synthèse!$B74)","v":0},{"$f":"SUMIFS(Scores!$H:$H,Scores!$B:$B,Synthèse!N$2,Scores!$C:$C,Synthèse!$B74)","v":0},{"$f":"SUMIFS(Scores!$I:$I,Scores!$B:$B,Synthèse!O$2,Scores!$C:$C,Synthèse!$B74)","v":0},{"$f":"SUMIFS(Scores!$H:$H,Scores!$B:$B,Synthèse!P$2,Scores!$C:$C,Synthèse!$B74)","v":0},{"$f":"SUMIFS(Scores!$I:$I,Scores!$B:$B,Synthèse!Q$2,Scores!$C:$C,Synthèse!$B74)","v":0}]
[null,"Gilles Binette","H",0,0,{"$f":"SUMIFS(Scores!$H:$H,Scores!$B:$B,Synthèse!F$2,Scores!$C:$C,Synthèse!$B75)","v":0},{"$f":"SUMIFS(Scores!$I:$I,Scores!$B:$B,Synthèse!G$2,Scores!$C:$C,Synthèse!$B75)","v":0},{"$f":"SUMIFS(Scores!$H:$H,Scores!$B:$B,Synthèse!H$2,Scores!$C:$C,Synthèse!$B75)","v":0},{"$f":"SUMIFS(Scores!$I:$I,Scores!$B:$B,Synthèse!I$2,Scores!$C:$C,Synthèse!$B75)","v":0},{"$f":"SUMIFS(Scores!$H:$H,Scores!$B:$B,Synthèse!J$2,Scores!$C:$C,Synthèse!$B75)","v":0},{"$f":"SUMIFS(Scores!$I:$I,Scores!$B:$B,Synthèse!K$2,Scores!$C:$C,Synthèse!$B75)","v":0},{"$f":"SUMIFS(Scores!$H:$H,Scores!$B:$B,Synthèse!L$2,Scores!$C:$C,Synthèse!$B75)","v":0},{"$f":"SUMIFS(Scores!$I:$I,Scores!$B:$B,Synthèse!M$2,Scores!$C:$C,Synthèse!$B75)","v":0},{"$f":"SUMIFS(Scores!$H:$H,Scores!$B:$B,Synthèse!N$2,Scores!$C:$C,Synthèse!$B75)","v":0},{"$f":"SUMIFS(Scores!$I:$I,Scores!$B:$B,Synthèse!O$2,Scores!$C:$C,Synthèse!$B75)","v":0},{"$f":"SUMIFS(Scores!$H:$H,Scores!$B:$B,Synthèse!P$2,Scores!$C:$C,Synthèse!$B75)","v":0},{"$f":"SUMIFS(Scores!$I:$I,Scores!$B:$B,Synthèse!Q$2,Scores!$C:$C,Synthèse!$B75)","v":0}]